Workbook

Sheet HOME
D1: 2020 v2 Retrofit Application - All Measures
D2: PNM Business Energy Efficiency Programs | K2: Add comments below:
A3: Why improve energy efficiency?
B17: Directly improves profitability by cutting operating costs | E17: Distinguishes your business as an energy efficiency steward in the community | H17: Qualifies your business for rebates that can cover portions of the upgrade cost
A18: Application Process | F18: Click on a quick link below:
A20: 1. | B20: Submit a Pre-Notification Application to reserve funding (if required). | F20: Administrative
A23: 2. | B23: Install the qualified technology.
A25: 3. | B25: Complete, sign and submit Final Application with all required documentation within 6 months of project completion. | F25: Worksheets
A30: 4. | B30: The incentive check will be sent 4 to 6 weeks after approval of the Final Application.
A39: Contact Our PNM Business Energy Efficiency Team
A41: 320 Gold Avenue SW, Ste 500 Albuquerque, NM 87102 | D41: (505) 938-9400 Main (505) 938-9401 Fax | F41: energyefficiency@pnm.com
F42: www.pnmenergyefficiency.com

Sheet Applicant Info
D1: APPLICANT INFORMATION | J1: For office use only:
J2: Application # | K2: Revision #
A4: Application Type: | G4: Check ONE box below:
C6: Retrofit | H6: Pre-Notification | J6: Date | P6: =IF(G6>0,"Yes",) -> 0
H7: or | O7: New pre notification checkbox flag:
H8: Final Application | J8: Date | O8: FALSE
A10: Customer Information | O10: Multifacility checkbox flag:
A11: PNM Account Number where measures installed* | O11: FALSE
C13: This Application represents multiple accounts / premises | G13: Enter number of Accounts / Premises -------> | N13: =is ->  | O13: Lighting Measures flag: | P13: FALSE
C15: This project includes lighting measures as part of the scope | G15: 2. If yes: Complete Multi-Facility Worksheet -------> CLICK HERE
C16: Scope of Work is REQUIRED for Lighting measures ----> Click Here
A17: Building Type*
M18: Business Type | O18: Tax Status | Q18: State
A19: Name of Company* | G19: Name Exactly as it Appears on Your Utility Bill* | M19: Assembly | O19: Corporation (Inc, PC, etc.) | Q19: AL
M20: College/University | O20: Government Agency | Q20: AK
A21: Name of Contact Person* | G21: Title* | M21: Grocery | O21: Individual | Q21: AZ
M22: Heavy Industry | O22: Partnership | Q22: AR
A23: Telephone #* | G23: Fax # | M23: Hotel/Motel Common Areas | O23: Exempt | Q23: CA
A24: Email Address* | M24: Light Industry | Q24: CO
A25: Address Where Measures Installed* | M25: Medical | Q25: CT
A26: City Where Measures Installed* | G26: State* | I26: =IF(E26="","","NM") ->  | J26: Zip* | M26: Office | Q26: DE
A27: Mailing Address* | M27: Restaurant | Q27: FL
A28: City* | G28: State* | J28: Zip* | M28: Retail/Service | Q28: GA
A29: Taxpayer ID Number (SSN/FEIN)* | G29: Tax Status* | M29: K-12 School | Q29: HI
A30: Contractor Information | M30: Warehouse | Q30: ID
A31: Contracting Company* | M31: Hotel/Motel or any Dwelling Unit | Q31: IL
A32: Contractor Name* | G32: Contractor Phone Number* | M32: Parking Garage | Q32: IN
A33: Contractor Email Address* | M33: Horticulture | Q33: IA
A34: Contractor Mailing Address* | M34: Miscellaneous | Q34: KS
A35: City* | G35: State* | J35: Zip* | Q35: KY
A36: Third Party Payment Release | Q36: LA
Q37: ME
C38: I request that the incentive check be sent to the third party below | H38: Check here if the third party payee is the contractor (Contractor must be a PNM Authorized Contractor to be eligible for third party payment) | Q38: MD
Q39: MA
A40: Name of Third Party* | Q40: MI
A41: Name of Third Party Contact Person* | G41: Title* | Q41: MN
Q42: MS
A43: Third Party Phone #* | G43: Fax # | Q43: MO
A44: Third Party Mailing Address* | Q44: MT
A45: Third Party City* | G45: State* | J45: Zip* | Q45: NE
A46: Third Party Email Address* | Q46: NV
A47: Third Party Taxpayer ID # (SSN/FEIN)* | G47: Tax Status* | Q47: NH
A48: Incentive Summary | Q48: NJ
A49: Total Incentive Requested | F49: Total Project Cost PRE-TAX * REQUIRED * | J49: =IF(O8=TRUE, "Estimated Project Completion Date", "Project Completion Date") -> Project Completion Date | Q49: NM
A50: =MIN(F67, F50*0.5,400000) -> 0 | Q50: NY
Q51: NC
A52: Incentive requested + 20% Bonus (valid 7/1/2020-12/31/2020 ONLY) *Any bonus offers are a limited time only, while funds are available and can be terminated at any time at the Program's discretion. | Q52: ND
A53: =MIN($F$67*1.2, $F$50*0.5,400000) -> 0 | Q53: OH
A54: AGREEMENT | Q54: OK
A55: I understand that in the event funds are reserved based on a pre-notification, the payment of incentives will be based upon the Final Application and program terms and conditions, and that the PNM Business Energy Efficiency program is subject to change or cancellation at any time and without notice. PNM is not responsible for any lost, late, stolen, ineligible, illegible, misdirected or postage-due mail. All completed submissions become the property of PNM and will not be returned. PNM makes no guarantees about the availability of products or rebate forms. By participating in the PNM Business Energy Efficiency program, customers agree to waive any claims and release PNM from any liability for damages of any kind. Rebates are funded by a charge on PNM electric customer bills. | Q55: OR
A56: I have read and understand the program requirements, measure specifications, and Terms & Conditions set forth in this application and agree to abide by those requirements. Furthermore, I concur that I must meet all eligibility criteria in order to be paid under this program. | Q56: PA
A57: As an eligible customer, I verify that the signature below is my own and that the information is correct. I am requesting consideration for participation under this program. By signing this agreement I attest that I understand and agree to abide by all Program terms and conditions. | Q57: RI
A58: Customer Signature (PNM Customer) | H58: Third Party Signature | Q58: SC
F59: Please sign by hand or via DocuSign® | Q59: SD
A60: Print Customer Name | H60: Print Third Party Name | Q60: TN
Q61: TX
A62: Date | H62: Date | Q62: UT
Q63: VT
Q64: VA
Q65: WA
Q66: WI
B67: For Office Use Only | F67: =SUM(F68:F80) -> 0 | Q67: WV
B68: Retrofit Lighting Interior | F68: =+Lighting!N17 -> 0 | Q68: WY
B69: Lighting-LED or Fluorescent replacing HID | F69: =+Lighting!J30 -> 0
B70: Lighting-LED replacing Fluorescent | F70: =+Lighting!J74 -> 0
B71: Lighting-Controlled LED Fixures | F71: =Lighting!F118 -> 0
B72: HVAC | F72: =+HVAC!H59 -> 0
B73: Refrigeration & Window Film | F73: =+'Refrigeration & Window Film'!I18+'Refrigeration & Window Film'!I34 -> 0
B74: Food Service | F74: ='Food Service'!J14 -> 0
B75: High Efficiency Ice Makers | F75: =+'Food Service'!J26 -> 0
B76: Industrial Equipment | F76: ='Food Service'!J33 -> 0
B77: Motors Incentives | F77: =+'Motors & VSDs'!I36 -> 0
B78: VSD Incentives | F78: =+'Motors & VSDs'!J51 -> 0
B79: Custom Incentives | F79: =+Custom!I51 -> 0
B80: Horticulture Lighting Incentives | F80: =+'Horticulture Lighting'!I51 -> 0

Sheet Checklist
D1: APPLICATION CHECKLIST
H50: http://www.pnmenergyefficiency.com
A61: APPLICATION CHECKLIST (CONTINUED)

Sheet Terms
D1: TERMS & CONDITIONS

Sheet Multi-Facility
B1: LIGHTING MULTIPLE FACILITY WORKSHEET
A2: Use this worksheet ONLY if installing the SAME measure in facilities with different service addresses and unique account numbers.
A3: If a project encompasses multiple buildings at the same premise, this worksheet is not required.
A4: For official use only | B4: Pre-Notification Date: | C4: =IF(ISBLANK('Applicant Info'!$K$6)," ",'Applicant Info'!$K$6) ->  | D4: Final Application Date: | E4: =IF(ISBLANK('Applicant Info'!$K$8)," ",'Applicant Info'!$K$8) -> 
A5: Application # | B5: =IF('Applicant Info'!J3="","",'Applicant Info'!J3) ->  | C5: Business Name: | D5: =IF(ISBLANK('Applicant Info'!$A$20)," ",'Applicant Info'!$A$20) -> 
A6: Prepared by: | B6: =IF(ISBLANK('Applicant Info'!$A$22)," ",'Applicant Info'!$A$22) ->  | D6: Contact #: | E6: ='Applicant Info'!$D$23 -> 0
A8: Project Locations
A9: Service Address | B9: Account # | C9: Replacement Equipment Type 1 | D9: Replacement Equipment Type 2 | E9: Replacement Equipment Qty | F9: Existing Equipment Description | G9: Existing Equipment Qty
A35: Total | E35: =SUM(E10:E34) -> 0 | G35: =SUM(G10:G34) -> 0
A200: Measure Type 1
A201: Interior_Lighting
A202: Exterior_Lighting
A203: _24_7_Lighting
A204: Plug_Load_Controls
A205: Custom
A206: HVAC
A207: Envelope
A208: Refrigeration
A209: Food_Service_Equipment
A210: Motors
A211: VSDs
A213: Measure Type 1 | B213: Measure Type 2 | C213: Unit | D213: Incentive | F213: Measure Type 1
A214: 24/7 Lighting | B214: T8, T5 or LED Replacing HID Lamp Only | C214: Watts Reduced | D214: 0.25 | F214: Interior Lighting
A215: 24/7 Lighting | B215: T8, T5 or LED Replacing HID, Entire Fixture | C215: Watts Reduced | D215: 0.5 | F215: Exterior Lighting
A216: 24/7 Lighting | B216: T8, T5 or LED Replacing HID, Retrofit Kit | C216: Watts Reduced | D216: 0.3 | F216: 24/7 Lighting
A217: 24/7 Lighting | B217: LED Replacing T5, T8 or T12, Lamp Only | C217: Watts Reduced | D217: 0.25 | F217: HVAC
A218: 24/7 Lighting | B218: LED Replacing T5, T8 or T12, Entire Fixture | C218: Watts Reduced | D218: 0.5 | F218: Envelope
A219: 24/7 Lighting | B219: LED Replacing T5, T8 or T12, Retrofit Kit | C219: Watts Reduced | D219: 0.3 | F219: Refrigeration
A220: 24/7 Lighting | B220: Controls for Existing LED Fixtures | C220: Watts Controlled | D220: 0.5 | F220: Food Service Equipment
A221: Exterior Lighting | B221: T8, T5 or LED Replacing HID, Lamp Only | C221: Watts Reduced | D221: 0.2 | F221: Plug Load Controls
A222: Exterior Lighting | B222: T8, T5 or LED Replacing HID, Entire Fixture | C222: Watts Reduced | D222: 0.4 | F222: Motors
A223: Exterior Lighting | B223: T8, T5 or LED Replacing HID, Retrofit Kit | C223: Watts Reduced | D223: 0.25 | F223: VSDs
A224: Exterior Lighting | B224: LED Replacing T5, T8 or T12, Lamp Only | C224: Watts Reduced | D224: 0.2
A225: Exterior Lighting | B225: LED Replacing T5, T8 or T12, Entire Fixture | C225: Watts Reduced | D225: 0.4
A226: Exterior Lighting | B226: LED Replacing T5, T8 or T12, Retrofit Kit | C226: Watts Reduced | D226: 0.25
A227: Exterior Lighting | B227: Controls for Existing LED Fixtures | C227: Watts Controlled | D227: 0.4
A228: Interior Lighting | B228: 20W or less LED Lamp replacing Incandescent Lamp ≤ 100W | C228: Lamp | D228: 8
A229: Interior Lighting | B229: 20W or less LED Lamp replacing CFL Lamp ≤ 42W | C229: Lamp | D229: 4
A230: Interior Lighting | B230: Controls Occupancy Sensors | C230: Watts Controlled | D230: 0.12
A231: Interior Lighting | B231: Controls Daylighting Sensor Controls | C231: Watts Controlled | D231: 0.09
A232: Interior Lighting | B232: T8, T5 or LED Replacing HID, Lamp Only | C232: Watts Reduced | D232: 0.15
A233: Interior Lighting | B233: T8, T5 or LED Replacing HID, Entire Fixture | C233: Watts Reduced | D233: 0.3
A234: Interior Lighting | B234: T8, T5 or LED Replacing HID, Retrofit Kit | C234: Watts Reduced | D234: 0.2
A235: Interior Lighting | B235: LED Replacing T5, T8 or T12, Lamp Only | C235: Watts Reduced | D235: 0.15
A236: Interior Lighting | B236: LED Replacing T5, T8 or T12, Entire Fixture | C236: Watts Reduced | D236: 0.3
A237: Interior Lighting | B237: LED Replacing T5, T8 or T12, Retrofit Kit | C237: Watts Reduced | D237: 0.2
C239: Unit | D239: Incentive
A240: Envelope | B240: Window Film | C240: Sq. Ft. of Glazing | D240: 1.2
C242: Unit | D242: Incentive
A243: Refrigeration | B243: Strip Curtains on Walk-ins and Freezers | C243: Sq. Ft. | D243: 3
A244: Refrigeration | B244: Night Covers for Displays | C244: Lin. Ft. of Case | D244: 10
A245: Refrigeration | B245: EC Motor for Reach-in Refrigerator or Freezer Cases | C245: Motor | D245: 25
A246: Refrigeration | B246: Evaporator Fan Controller - Shade Pole Motor | C246: Motor | D246: 40
A247: Refrigeration | B247: Anti Sweat Heater Controls | C247: Lin. Ft. of Case | D247: 25
A248: Refrigeration | B248: LED Refrigeration Case Lighting | C248: Door | D248: 40
A249: Refrigeration | B249: ENERGY STAR® Solid Door Freezer | C249: Unit | D249: 100
A250: Refrigeration | B250: ENERGY STAR® Glass Door Freezer | C250: Unit | D250: 350
C252: Unit | D252: Incentive
A253: Food Service Equipment | B253: ENERGY STAR® Steam Cookers | C253: Unit | D253: 400
A254: Food Service Equipment | B254: Combination Oven | C254: Unit | D254: 800
A255: Food Service Equipment | B255: ENERGY STAR® Hot Holding Cabinet - 1/2 size | C255: Unit | D255: 200
A256: Food Service Equipment | B256: ENERGY STAR® Hot Holding Cabinet - 3/4 size | C256: Unit | D256: 300
A257: Food Service Equipment | B257: ENERGY STAR® Hot Holding Cabinet - Full size | C257: Unit | D257: 400
A258: Food Service Equipment | B258: ENERGY STAR® Beverage Vending Machine | C258: Unit | D258: 80
A259: Food Service Equipment | B259: ENERGY STAR® Commercial Vat Fryer | C259: Unit | D259: 225
A260: Food Service Equipment | B260: ENERGY STAR® Griddle | C260: Unit | D260: 125
C262: Unit | D262: Incentive
A263: High Efficiency Ice Makers | B263: 101-200 lbs/24 hours | C263: Unit | D263: 100
A264: High Efficiency Ice Makers | B264: 201-300 lbs/24 hours | C264: Unit | D264: 150
A265: High Efficiency Ice Makers | B265: 301-400 lbs/24 hours | C265: Unit | D265: 200
A266: High Efficiency Ice Makers | B266: 401-500 lbs/24 hours | C266: Unit | D266: 250
A267: High Efficiency Ice Makers | B267: 501-1000 lbs/24 hours | C267: Unit | D267: 300
A268: High Efficiency Ice Makers | B268: 1001-1500 lbs/24 hours | C268: Unit | D268: 350
A269: High Efficiency Ice Makers | B269: >1500 lbs/24 hours | C269: Unit | D269: 400
C271: Unit | D271: Incentive
A272: Plug Load Controls | B272: Beverage Vending Machine Control | C272: Unit | D272: Contact for offer
A273: Plug Load Controls | B273: Refrigerated Cooler Control | C273: Unit | D273: Contact for offer
A274: Plug Load Controls | B274: Snack Machine Control | C274: Unit | D274: Contact for offer
A275: Plug Load Controls | B275: Plug Load Occupancy Sensors | C275: Unit | D275: 25
C277: Unit | D277: Incentive
A278: Motors | B278: 1200 RPM - 1 HP - Open | C278: motor | D278: 1
A279: Motors | B279: 1200 RPM - 1 HP - Open | C279: motor | D279: 1.5
A280: Motors | B280: 1200 RPM - 1 HP - Open | C280: motor | D280: 2
A281: Motors | B281: 1200 RPM - 1 HP - Open | C281: motor | D281: 3
A282: Motors | B282: 1200 RPM - 1 HP - Open | C282: motor | D282: 4
A283: Motors | B283: 1200 RPM - 1 HP - Open | C283: motor | D283: 9
A284: Motors | B284: 1200 RPM - 1 HP - Open | C284: motor | D284: 10
A285: Motors | B285: 1200 RPM - 1 HP - Open | C285: motor | D285: 11
A286: Motors | B286: 1200 RPM - 1 HP - Open | C286: motor | D286: 12
A287: Motors | B287: 1200 RPM - 1 HP - Open | C287: motor | D287: 15
A288: Motors | B288: 1200 RPM - 1 HP - Open | C288: motor | D288: 17
A289: Motors | B289: 1200 RPM - 1 HP - Open | C289: motor | D289: 20
A290: Motors | B290: 1200 RPM - 1 HP - Open | C290: motor | D290: 24
A291: Motors | B291: 1200 RPM - 1 HP - Open | C291: motor | D291: 25
A292: Motors | B292: 1200 RPM - 1 HP - Open | C292: motor | D292: 30
A293: Motors | B293: 1200 RPM - 1 HP - Open | C293: motor | D293: 40
A294: Motors | B294: 1200 RPM - 1 HP - Open | C294: motor | D294: 50
A295: Motors | B295: 1200 RPM - 1 HP - Open | C295: motor | D295: 60
A296: Motors | B296: 1200 RPM - 1 HP - Open | C296: motor | D296: 75
A297: Motors | B297: 1200 RPM - 1 HP - Open | C297: motor | D297: 1
A298: Motors | B298: 1200 RPM - 1 HP - Open | C298: motor | D298: 1.5
A299: Motors | B299: 1200 RPM - 1 HP - Open | C299: motor | D299: 2
A300: Motors | B300: 1200 RPM - 1 HP - Open | C300: motor | D300: 3
A301: Motors | B301: 1200 RPM - 1 HP - Open | C301: motor | D301: 4
A302: Motors | B302: 1200 RPM - 1 HP - Open | C302: motor | D302: 9
A303: Motors | B303: 1200 RPM - 1 HP - Open | C303: motor | D303: 10
A304: Motors | B304: 1200 RPM - 1 HP - Open | C304: motor | D304: 11
A305: Motors | B305: 1200 RPM - 1 HP - Open | C305: motor | D305: 12
A306: Motors | B306: 1200 RPM - 1 HP - Open | C306: motor | D306: 15
A307: Motors | B307: 1200 RPM - 1 HP - Open | C307: motor | D307: 17
A308: Motors | B308: 1200 RPM - 1 HP - Open | C308: motor | D308: 20
A309: Motors | B309: 1200 RPM - 1 HP - Open | C309: motor | D309: 24
A310: Motors | B310: 1200 RPM - 1 HP - Open | C310: motor | D310: 25
A311: Motors | B311: 1200 RPM - 1 HP - Open | C311: motor | D311: 30
A312: Motors | B312: 1200 RPM - 1 HP - Open | C312: motor | D312: 40
A313: Motors | B313: 1200 RPM - 1 HP - Open | C313: motor | D313: 50
A314: Motors | B314: 1200 RPM - 1 HP - Open | C314: motor | D314: 60
A315: Motors | B315: 1200 RPM - 1 HP - Open | C315: motor | D315: 75
A316: Motors | B316: 1200 RPM - 1 HP - Open | C316: motor | D316: 1
A317: Motors | B317: 1200 RPM - 1 HP - Open | C317: motor | D317: 1.5
A318: Motors | B318: 1200 RPM - 1 HP - Open | C318: motor | D318: 2
A319: Motors | B319: 1200 RPM - 1 HP - Open | C319: motor | D319: 3
A320: Motors | B320: 1200 RPM - 1 HP - Open | C320: motor | D320: 4
A321: Motors | B321: 1200 RPM - 1 HP - Open | C321: motor | D321: 9
A322: Motors | B322: 1200 RPM - 1 HP - Open | C322: motor | D322: 10
A323: Motors | B323: 1200 RPM - 1 HP - Open | C323: motor | D323: 11
A324: Motors | B324: 1200 RPM - 1 HP - Open | C324: motor | D324: 12
A325: Motors | B325: 1200 RPM - 1 HP - Open | C325: motor | D325: 15
A326: Motors | B326: 1200 RPM - 1 HP - Open | C326: motor | D326: 17
A327: Motors | B327: 1200 RPM - 1 HP - Open | C327: motor | D327: 20
A328: Motors | B328: 1200 RPM - 1 HP - Open | C328: motor | D328: 24
A329: Motors | B329: 1200 RPM - 1 HP - Open | C329: motor | D329: 25
A330: Motors | B330: 1200 RPM - 1 HP - Open | C330: motor | D330: 30
A331: Motors | B331: 1200 RPM - 1 HP - Open | C331: motor | D331: 40
A332: Motors | B332: 1200 RPM - 1 HP - Open | C332: motor | D332: 50
A333: Motors | B333: 1200 RPM - 1 HP - Open | C333: motor | D333: 60
A334: Motors | B334: 1200 RPM - 1 HP - Open | C334: motor | D334: 75
A335: Motors | B335: 1200 RPM - 1 HP - Open | C335: motor | D335: 1
A336: Motors | B336: 1200 RPM - 1 HP - Open | C336: motor | D336: 1.5
A337: Motors | B337: 1200 RPM - 1 HP - Open | C337: motor | D337: 2
A338: Motors | B338: 1200 RPM - 1 HP - Open | C338: motor | D338: 3
A339: Motors | B339: 1200 RPM - 1 HP - Open | C339: motor | D339: 4
A340: Motors | B340: 1200 RPM - 1 HP - Open | C340: motor | D340: 9
A341: Motors | B341: 1200 RPM - 1 HP - Open | C341: motor | D341: 10
A342: Motors | B342: 1200 RPM - 1 HP - Open | C342: motor | D342: 11
A343: Motors | B343: 1200 RPM - 1 HP - Open | C343: motor | D343: 12
A344: Motors | B344: 1200 RPM - 1 HP - Open | C344: motor | D344: 15
A345: Motors | B345: 1200 RPM - 1 HP - Open | C345: motor | D345: 17
A346: Motors | B346: 1200 RPM - 1 HP - Open | C346: motor | D346: 20
A347: Motors | B347: 1200 RPM - 1 HP - Open | C347: motor | D347: 24
A348: Motors | B348: 1200 RPM - 1 HP - Open | C348: motor | D348: 25
A349: Motors | B349: 1200 RPM - 1 HP - Open | C349: motor | D349: 30
A350: Motors | B350: 1200 RPM - 1 HP - Open | C350: motor | D350: 40
A351: Motors | B351: 1200 RPM - 1 HP - Open | C351: motor | D351: 50
A352: Motors | B352: 1200 RPM - 1 HP - Open | C352: motor | D352: 60
A353: Motors | B353: 1200 RPM - 1 HP - Open | C353: motor | D353: 75
A354: Motors | B354: 1200 RPM - 1 HP - Open | C354: motor | D354: 1
A355: Motors | B355: 1200 RPM - 1 HP - Open | C355: motor | D355: 1.5
A356: Motors | B356: 1200 RPM - 1 HP - Open | C356: motor | D356: 2
A357: Motors | B357: 1200 RPM - 1 HP - Open | C357: motor | D357: 3
A358: Motors | B358: 1200 RPM - 1 HP - Open | C358: motor | D358: 4
A359: Motors | B359: 1200 RPM - 1 HP - Open | C359: motor | D359: 9
A360: Motors | B360: 1200 RPM - 1 HP - Open | C360: motor | D360: 10
A361: Motors | B361: 1200 RPM - 1 HP - Open | C361: motor | D361: 11
A362: Motors | B362: 1200 RPM - 1 HP - Open | C362: motor | D362: 12
A363: Motors | B363: 1200 RPM - 1 HP - Open | C363: motor | D363: 15
A364: Motors | B364: 1200 RPM - 1 HP - Open | C364: motor | D364: 17
A365: Motors | B365: 1200 RPM - 1 HP - Open | C365: motor | D365: 20
A366: Motors | B366: 1200 RPM - 1 HP - Open | C366: motor | D366: 24
A367: Motors | B367: 1200 RPM - 1 HP - Open | C367: motor | D367: 25
A368: Motors | B368: 1200 RPM - 1 HP - Open | C368: motor | D368: 30
A369: Motors | B369: 1200 RPM - 1 HP - Open | C369: motor | D369: 40
A370: Motors | B370: 1200 RPM - 1 HP - Open | C370: motor | D370: 50
A371: Motors | B371: 1200 RPM - 1 HP - Open | C371: motor | D371: 60
A372: Motors | B372: 1200 RPM - 1 HP - Open | C372: motor | D372: 75
A373: Motors | B373: 1200 RPM - 1 HP - Open | C373: motor | D373: 1
A374: Motors | B374: 1200 RPM - 1 HP - Open | C374: motor | D374: 1.5
A375: Motors | B375: 1200 RPM - 1 HP - Open | C375: motor | D375: 2
A376: Motors | B376: 1200 RPM - 1 HP - Open | C376: motor | D376: 3
A377: Motors | B377: 1200 RPM - 1 HP - Open | C377: motor | D377: 4
A378: Motors | B378: 1200 RPM - 1 HP - Open | C378: motor | D378: 9
A379: Motors | B379: 1200 RPM - 1 HP - Open | C379: motor | D379: 10
A380: Motors | B380: 1200 RPM - 1 HP - Open | C380: motor | D380: 11
A381: Motors | B381: 1200 RPM - 1 HP - Open | C381: motor | D381: 12
A382: Motors | B382: 1200 RPM - 1 HP - Open | C382: motor | D382: 15
A383: Motors | B383: 1200 RPM - 1 HP - Open | C383: motor | D383: 17
A384: Motors | B384: 1200 RPM - 1 HP - Open | C384: motor | D384: 20
A385: Motors | B385: 1200 RPM - 1 HP - Open | C385: motor | D385: 24
A386: Motors | B386: 1200 RPM - 1 HP - Open | C386: motor | D386: 25
A387: Motors | B387: 1200 RPM - 1 HP - Open | C387: motor | D387: 30
A388: Motors | B388: 1200 RPM - 1 HP - Open | C388: motor | D388: 40
A389: Motors | B389: 1200 RPM - 1 HP - Open | C389: motor | D389: 50
A390: Motors | B390: 1200 RPM - 1 HP - Open | C390: motor | D390: 60
A391: Motors | B391: 1200 RPM - 1 HP - Open | C391: motor | D391: 75
C394: Unit | D394: Incentive
A395: VSDs | B395: VSD Size (HP) | C395: Hp | D395: 50
C397: Unit | D397: Incentive
A398: HVAC | B398: HVAC Units, contact for offer | C398: Unit | D398: Contact for offer
C400: Unit | D400: Incentive
A401: Custom | B401: Per kWh | C401: kWh | D401: 0.075

Sheet Lighting
D1: LIGHTING INCENTIVES FOR RETROFITS
A2: Click a link at right to jump to that section: | D2: 1. Interior Retrofits
D3: 2. LED Replacing HID (Lamps, Fixtures & Retrofit kits)
D4: 3. LED Replacing T5, T8 or T12 (Lamps, Fixtures & Retrofit Kits)
D5: 4. Controls for Existing LED Fixtures
C6: IMPORTANT NOTICE: Only qualified LED lighting is elegible for a rebate. No fluorescent replacements are eligible for rebates.
A7: Applicant: fill in gray fields
A8: 1. Interior Retrofits
A9: Equipment Type* | J9: Incentive | K9: Unit | M9: # of Units | N9: Incentive Subtotal | P9: Cost | T9: =1.191 -> 1.191 | V9: Incentive | W9: kWh | X9: Cost/kWh | Z9: Proposed | AA9: Delta | AB9: Incentive W | AC9: kWh W
A10: LED Lighting | Q10: Recommend decreasing to these levels | T10: Fix to Fix | U10: In | V10: =E71*#REF! ->  | W10: =E71*3564*T9/1000 -> 0 | X10: 0.09423463104 | Z10: =V10/W10 ->  | AA10: =X10-Z10 ->  | AB10: 0.2953952082 | AC10: 0.2865916734
A11: 20W or less LED Lamp replacing Incandescent Lamp ≤ 100W | J11: 2 | K11: Lamp | N11: =J11*M11 -> 0 | P11: 2 | U11: Ext | V11: =E72*#REF! ->  | W11: =E72*4192/1000 -> 0 | X11: 0.1192748092 | AB11: 0.2277392336 | AC11: 0.1641420573
A12: 20W or less LED Lamp replacing CFL Lamp ≤ 42W | J12: 1 | K12: Lamp | N12: 0 | P12: 1 | U12: 24 | V12: =E73*#REF! ->  | W12: =E73*8760/1000 -> 0 | X12: 0.06849315068 | AB12: 0.06018826332 | AC12: 0.05926012659
A13: Controls | C13: Watts Controlled Calculator Required - DOWNLOAD HERE | T13: Fix to Retro | U13: In | V13: =I71*#REF! ->  | W13: =I71*3564*T9/1000 -> 0 | X13: 0.04711731552 | AB13: 0.04139502914 | AC13: 0.05890014028
A14: Occupancy Sensors | J14: 0.15 | K14: Watts Controlled | N14: =J14*M14 -> 0 | P14: 0.1423469353 | U14: Ext | V14: =I72*#REF! ->  | W14: =I72*4192/1000 -> 0 | X14: 0.05963740458 | AB14: 0.005633925964 | AC14: 0.005185389619
A15: Daylighting Sensor Controls | J15: 0.09 | K15: Watts Controlled | N15: =J15*M15 -> 0 | U15: 24 | V15: =I73*#REF! ->  | W15: =I73*8760/1000 -> 0 | X15: 0.03424657534 | AB15: 0.1164101134 | AC15: 0.1795344842
T16: L to L | U16: In | V16: =G71*#REF! ->  | W16: =G71*3564*T9/1000 -> 0 | X16: 0.03533798664 | AB16: 0.1248771278 | AC16: 0.1644381947
A17: Total Retrofit Lighting Incentives (Interior) | N17: =SUM(N11:N15) -> 0 | Q17: =N17 -> 0 | U17: Ext | V17: =G72*#REF! ->  | W17: =G72*4192/1000 -> 0 | X17: 0.04770992366 | AB17: 0.00618656693 | AC17: 0.007225629765
U18: 24 | V18: =G73*#REF! ->  | W18: =G73*8760/1000 -> 0 | X18: 0.02853881279 | AB18: 0.02881852043 | AC18: 0.05339410861
A19: *Please provide a description of the retrofit, including any lighting layouts, fixture counts or calculation spreadsheets.
A20: ** A dwelling unit is defined as an interior space that is residential in nature (i.e. hotel rooms, dormitories, retirement and senior
A21: living communities, etc.). For Multi-family apartments apply through the PNM Multifamily Program.
A22: ***Watts Reduced = old connected wattage - new connected wattage
A24: 2. LED Replacing HID (Lamps, Fixtures & Retrofit kits)
B25: Type of Retrofit | D25: Fixture Replacing Fixture | F25: Lamp Replacing Lamp | H25: Fixture to Retrofit Kit | J25: Total Incentive
D26: Incentive | E26: Watts Reduced | F26: Incentive | G26: Watts Reduced | H26: Incentive | I26: Watts Reduced
B27: Interior | D27: 0.4 | E27: =SUMIFS($N$33:$N$47,$B$33:$B$47,$B27,$C$33:$C$47,D$25)-SUMIFS($N$51:$N$65,$B$51:$B$65,$B27,$C$51:$C$65,D$25) -> 0 | F27: 0.2 | G27: =SUMIFS($N$33:$N$47,$B$33:$B$47,$B27,$C$33:$C$47,F$25)-SUMIFS($N$51:$N$65,$B$51:$B$65,$B27,$C$51:$C$65,F$25) -> 0 | H27: 0.3 | I27: =SUMIFS($N$33:$N$47,$B$33:$B$47,$B27,$C$33:$C$47,H$25)-SUMIFS($N$51:$N$65,$B$51:$B$65,$B27,$C$51:$C$65,H$25) -> 0 | J27: =IF(OR(D27*E27+F27*G27+H27*I27<0,$N$66="",$N$66=0), 0, D27*E27+F27*G27+H27*I27) -> 0 | Q27: Recommend increasing to these levels
B28: Exterior/12 Hour | D28: 0.5 | E28: =SUMIFS($N$33:$N$47,$B$33:$B$47,$B28,$C$33:$C$47,D$25)-SUMIFS($N$51:$N$65,$B$51:$B$65,$B28,$C$51:$C$65,D$25) -> 0 | F28: 0.25 | G28: =SUMIFS($N$33:$N$47,$B$33:$B$47,$B28,$C$33:$C$47,F$25)-SUMIFS($N$51:$N$65,$B$51:$B$65,$B28,$C$51:$C$65,F$25) -> 0 | H28: 0.35 | I28: =SUMIFS($N$33:$N$47,$B$33:$B$47,$B28,$C$33:$C$47,H$25)-SUMIFS($N$51:$N$65,$B$51:$B$65,$B28,$C$51:$C$65,H$25) -> 0 | J28: 0
B29: 24 Hour/Garage/3-Shift | D29: 1.2 | E29: =SUMIFS($N$33:$N$47,$B$33:$B$47,$B29,$C$33:$C$47,D$25)-SUMIFS($N$51:$N$65,$B$51:$B$65,$B29,$C$51:$C$65,D$25) -> 0 | F29: 0.6 | G29: =SUMIFS($N$33:$N$47,$B$33:$B$47,$B29,$C$33:$C$47,F$25)-SUMIFS($N$51:$N$65,$B$51:$B$65,$B29,$C$51:$C$65,F$25) -> 0 | H29: 0.8 | I29: =SUMIFS($N$33:$N$47,$B$33:$B$47,$B29,$C$33:$C$47,H$25)-SUMIFS($N$51:$N$65,$B$51:$B$65,$B29,$C$51:$C$65,H$25) -> 0 | J29: =IF(OR(D29*E29+F29*G29+H29*I29<0,$N$66="",$N$66=0), 0, D29*E29+F29*G29+H29*I29) -> 0
B30: TOTAL NEW High Efficiency LED fixture replacing HID Fixture | J30: =SUM(J27:K29) -> 0 | Q30: =J30 -> 0
A31: Existing equipment: HID fixtures and/or lamps being removed
A32: # | B32: Measure Type | C32: Retrofit Type | D32: Fixture Type | F32: Ballast Type | H32: Description | J32: Lamps/ Fixture | K32: Lamp Wattage | L32: Fixture Quantity | M32: Fixture Wattage | N32: Base Watts
A33: 1 | J33: =IF($H33="","",VLOOKUP($H33,$BB:$BF,3,FALSE)) ->  | K33: =IF($H33="","",VLOOKUP($H33,$BB:$BF,4,FALSE)) ->  | M33: =IF($H33="","",VLOOKUP($H33,$BB:$BF,5,FALSE)) ->  | N33: =IF((IF($H33="","",M33*L33))=0,"Missing Value",(IF($H33="","",M33*L33))) -> 
A34: 2
A35: 3
A36: 4
A37: 5
A38: 6
A39: 7 | N39: =IF((IF($H39="","",M39*L39))=0,"Missing Value",(IF($H39="","",M39*L39))) -> 
A40: 8
A41: 9
A42: 10
A43: 11
A44: 12
A45: 13
A46: 14
A47: 15
A48: Subtotal HID Base Case Wattage | N48: =IF(SUM(N33:N47)=0,"",SUM(N33:N47)) -> 
A49: Replacement equipment: New LED lamps, fixtures, or fixture retrofit kit being installed
A50: # | B50: Measure Type | C50: Retrofit Type | D50: Fixture Type | F50: Fixture or Ballast Sub Type | H50: Description (type in model number) | J50: Lamps/ Fixture | K50: Lamp Wattage | L50: Fixture Quantity | M50: Fixture Wattage | N50: Installed Watts
A51: 1 | M51: =IF($H51="","",J51*K51) ->  | N51: =IF((IF($H51="","",M51*L51))=0,"Missing Value",(IF($H51="","",M51*L51))) -> 
A52: 2
A53: 3
A54: 4
A55: 5
A56: 6
A57: 7
A58: 8
A59: 9 | M59: =IF($H59="","",J59*K59) ->  | N59: =IF((IF($H59="","",M59*L59))=0,"Missing Value",(IF($H59="","",M59*L59))) -> 
A60: 10
A61: 11
A62: 12
A63: 13
A64: 14
A65: 15
A66: Subtotal Installed T8, T5, or LED Wattage | N66: =IF(SUM(N51:N65)=0,"",SUM(N51:N65)) -> 
A67: 3. LED Replacing T5, T8 or T12 (Lamps, Fixtures & Retrofit Kits) | R67: Ranges and lookup values for calculated lighting tables. Use caution when editing ranges that are used for data validation lists
R68: (tips: no symbols allowed, no spaces allowed unless removed with substitute function, any change to a range could delete it, so it must be re-created, use ctrl shift F3 to create a range, range name must begin and end with a letter and no spaces)
B69: Type of Retrofit | D69: Fixture Replacing Fixture | F69: Lamp Replacing Lamp | H69: Fixture to Retrofit Kit | J69: Total Incentive | R69: TABLE 1: EXISTING HID
D70: Incentive | E70: Watts Reduced | F70: Incentive | G70: Watts Reduced | H70: Incentive | I70: Watts Reduced | R70: Measure Type | T70: 1. Retrofit Type | Y70: 2. Fixture Type | AD70: 3. Ballast Type | AN70: 4. Description | BA70: 5. Description lookup (all measures)
B71: Interior | D71: 0.4 | E71: =SUMIFS($N$77:$N$91,$B$77:$B$91,$B71,$C$77:$C$91,D$69)-SUMIFS($N$95:$N$109,$B$95:$B$109,$B71,$C$95:$C$109,D$69) -> 0 | F71: 0.2 | G71: =SUMIFS($N$77:$N$91,$B$77:$B$91,$B71,$C$77:$C$91,F$69)-SUMIFS($N$95:$N$109,$B$95:$B$109,$B71,$C$95:$C$109,F$69) -> 0 | H71: 0.3 | I71: =SUMIFS($N$77:$N$91,$B$77:$B$91,$B71,$C$77:$C$91,H$69)-SUMIFS($N$95:$N$109,$B$95:$B$109,$B71,$C$95:$C$109,H$69) -> 0 | J71: =IF(OR($D71*$E71+$F71*$G71+$H71*$I71<0,$N$110="",$N$110=0), 0,$D71* $E71+$F71*$G71+$H71*$I71) -> 0 | Y71: HIDFixturereplacingFixture | Z71: HIDLampreplacingLamp | AA71: HIDFixturetoRetrofitKit | AD71: CFL | AE71: HPS | AF71: I/H | AG71: MV | AH71: MH | BA71: TYPE | BB71: DESCRIPTION | BC71: Ballast Type | BD71: LAMP / FIXTURE | BE71: WATT / LAMP | BF71: WATT / FIXTURE
B72: Exterior/12 Hour | D72: 0.5 | E72: =SUMIFS($N$77:$N$91,$B$77:$B$91,$B72,$C$77:$C$91,D$69)-SUMIFS($N$95:$N$109,$B$95:$B$109,$B72,$C$95:$C$109,D$69) -> 0 | F72: 0.25 | G72: =SUMIFS($N$77:$N$91,$B$77:$B$91,$B72,$C$77:$C$91,F$69)-SUMIFS($N$95:$N$109,$B$95:$B$109,$B72,$C$95:$C$109,F$69) -> 0 | H72: 0.35 | I72: =SUMIFS($N$77:$N$91,$B$77:$B$91,$B72,$C$77:$C$91,H$69)-SUMIFS($N$95:$N$109,$B$95:$B$109,$B72,$C$95:$C$109,H$69) -> 0 | J72: =IF(OR($D72*$E72+$F72*$G72+$H72*$I72<0,$N$110="",$N$110=0), 0,$D72* $E72+$F72*$G72+$H72*$I72) -> 0 | R72: MeasureType | T72: 1. Retrofit Type | Y72: CFL | Z72: CFL | AA72: CFL | AD72: HIDCFL | AE72: HIDHighPressureSodium | AF72: HIDIncanorHalogen | AG72: HIDMercuryVapor | AH72: HIDMetalHalide | AN72: HighPressureSodiumMagnetic | AO72: IncanorHalogenNone | AQ72: MercuryVaporMagnetic | AR72: MetalHalideElectronic | AS72: MetalHalideMagnetic | AT72: FixturetoRetrofitKitFixturetoRetrofitKit | AU72: CFLNone | BA72: CFL | BB72: 25 Watt Compact Fluorescent | BC72: None | BD72: 1 | BE72: 25 | BF72: 25
B73: 24 Hour/Garage/3-Shift | D73: 1.2 | E73: =SUMIFS($N$77:$N$91,$B$77:$B$91,$B73,$C$77:$C$91,D$69)-SUMIFS($N$95:$N$109,$B$95:$B$109,$B73,$C$95:$C$109,D$69) -> 0 | F73: 0.6 | G73: =SUMIFS($N$77:$N$91,$B$77:$B$91,$B73,$C$77:$C$91,F$69)-SUMIFS($N$95:$N$109,$B$95:$B$109,$B73,$C$95:$C$109,F$69) -> 0 | H73: 0.8 | I73: =SUMIFS($N$77:$N$91,$B$77:$B$91,$B73,$C$77:$C$91,H$69)-SUMIFS($N$95:$N$109,$B$95:$B$109,$B73,$C$95:$C$109,H$69) -> 0 | J73: 0 | R73: Interior | T73: Fixture replacing Fixture | Y73: High Pressure Sodium | Z73: High Pressure Sodium | AA73: High Pressure Sodium | AD73: None | AE73: Magnetic | AF73: None | AG73: Magnetic | AH73: Magnetic | AN73: 35 Watt HPS Lamp, Magnetic ballast | AO73: 110 Watt Incandescent or Halogen Lamp | AQ73: 40 Watt MV Lamp | AR73: 20 Watt MH Lamp, Electronic Ballast | AS73: 32 Watt MH Lamp, Magnetic ballast | AT73: Fixture to Retrofit Kit | AU73: 25 Watt Compact Fluorescent | BA73: CFL | BB73: 30 Watt Compact Fluorescent | BC73: None | BD73: 1 | BE73: 30 | BF73: 30
B74: TOTAL NEW LED replacing T5, T8, or T12 Fixture | J74: =SUM(J71:K73) -> 0 | Q74: =J74 -> 0 | R74: Exterior/12 Hour | T74: Lamp replacing Lamp | Y74: Incan or Halogen | Z74: Incan or Halogen | AA74: Incan or Halogen | AH74: Electronic | AN74: 50 Watt HPS Lamp, Magnetic ballast | AO74: 116 Watt Incandescent or Halogen Lamp | AQ74: 50 Watt MV Lamp | AR74: 22 Watt MH Lamp, Electronic Ballast | AS74: 39 Watt MH Lamp, Magnetic ballast | AU74: 30 Watt Compact Fluorescent | BA74: CFL | BB74: 35 Watt Compact Fluorescent | BC74: None | BD74: 1 | BE74: 35 | BF74: 35
A75: Existing equipment: T5, T8 or T12 fixtures and/or lamps being removed | R75: 24 Hour/Garage/3-Shift | T75: Fixture to Retrofit Kit | Y75: Mercury Vapor | Z75: Mercury Vapor | AA75: Mercury Vapor | AN75: 70 Watt HPS Lamp, Magnetic ballast | AO75: 120 Watt Incandescent or Halogen Lamp | AQ75: 75 Watt MV Lamp | AR75: 39 Watt MH Lamp, Electronic Ballast | AS75: 50 Watt MH Lamp, Magnetic ballast | AU75: 35 Watt Compact Fluorescent | BA75: CFL | BB75: 40 Watt Compact Fluorescent | BC75: None | BD75: 1 | BE75: 40 | BF75: 40
A76: # | B76: Measure Type | C76: Retrofit Type | D76: Fixture Type | F76: Ballast Type | H76: Description | J76: Lamps/ Fixture | K76: Lamp Wattage | L76: Fixture Quantity | M76: Fixture Wattage | N76: Base Watts | Y76: Metal Halide | Z76: Metal Halide | AA76: Metal Halide | AN76: 100 Watt HPS Lamp, Magnetic ballast | AO76: 125 Watt Incandescent or Halogen Lamp | AQ76: 100 Watt MV Lamp | AR76: 50 Watt MH Lamp, Electronic Ballast | AS76: 70 Watt MH Lamp, Magnetic ballast | AU76: 40 Watt Compact Fluorescent | BA76: CFL | BB76: 45 Watt Compact Fluorescent | BC76: None | BD76: 1 | BE76: 45 | BF76: 45
A77: 1 | J77: =IF($H77="","",VLOOKUP($H77,$BB:$BF,3,FALSE)) ->  | K77: =IF($H77="","",VLOOKUP($H77,$BB:$BF,4,FALSE)) ->  | M77: =IF($H77="","",VLOOKUP($H77,$BB:$BF,5,FALSE)) ->  | N77: =IF((IF($H77="","",M77*L77))=0,"Missing Value",(IF($H77="","",M77*L77))) ->  | AN77: 150 Watt HPS Lamp, Magnetic ballast | AO77: 130 Watt Incandescent or Halogen Lamp | AQ77: 160 Watt MV self-ballasted Lamp | AR77: 70 Watt MH Lamp, Electronic Ballast | AS77: 100 Watt MH Lamp, Magnetic ballast | AU77: 45 Watt Compact Fluorescent | BA77: CFL | BB77: 50 Watt Compact Fluorescent | BC77: None | BD77: 1 | BE77: 50 | BF77: 50
A78: 2 | AN78: 200 Watt HPS Lamp, Magnetic ballast | AO78: 135 Watt Incandescent or Halogen Lamp | AQ78: 175 Watt MV Lamp | AR78: 100 Watt MH Lamp, Electronic Ballast | AS78: 125 Watt MH Lamp, Magnetic ballast | AU78: 50 Watt Compact Fluorescent | BA78: CFL | BB78: 55 Watt Compact Fluorescent | BC78: None | BD78: 1 | BE78: 55 | BF78: 55
A79: 3 | AN79: 250 Watt HPS Lamp, Magnetic ballast | AO79: 150 Watt Incandescent or Halogen Lamp | AQ79: 250 Watt MV Lamp | AR79: 150 Watt MH Lamp, Electronic Ballast | AS79: 150 Watt MH Lamp, Magnetic Ballast | AU79: 55 Watt Compact Fluorescent | BA79: CFL | BB79: 60 Watt Compact Fluorescent | BC79: None | BD79: 1 | BE79: 60 | BF79: 60
A80: 4 | AN80: 310 Watt HPS Lamp, Magnetic ballast | AO80: 160 Watt Incandescent or Halogen Lamp | AQ80: 400 Watt MV Lamp | AR80: 175 Watt MH Lamp, Electronic Ballast | AS80: 175 Watt MH Lamp, Magnetic ballast | AU80: 60 Watt Compact Fluorescent | BA80: CFL | BB80: 65 Watt Compact Fluorescent | BC80: None | BD80: 1 | BE80: 65 | BF80: 65
A81: 5 | AN81: 360 Watt HPS Lamp, Magnetic ballast | AO81: 170 Watt Incandescent or Halogen Lamp | AQ81: 700 Watt MV Lamp | AR81: 200 Watt MH Lamp, Electronic Ballast | AS81: 200 Watt MH Lamp, Magnetic ballast | AU81: 65 Watt Compact Fluorescent | BA81: CFL | BB81: 70 Watt Compact Fluorescent | BC81: None | BD81: 1 | BE81: 70 | BF81: 70
A82: 6 | AN82: 400 Watt HPS Lamp, Magnetic ballast | AO82: 200 Watt Incandescent or Halogen Lamp | AQ82: 1000 Watt MV Lamp | AR82: 250 Watt MH Lamp, Electronic Ballast | AS82: 250 Watt MH Lamp, Magnetic ballast | AU82: 70 Watt Compact Fluorescent | BA82: CFL | BB82: 75 Watt Compact Fluorescent | BC82: None | BD82: 1 | BE82: 75 | BF82: 75
A83: 7 | AN83: 1000 Watt HPS Lamp, Magnetic ballast | AO83: 250 Watt Incandescent or Halogen Lamp | AR83: 320 Watt MH Lamp, Electronic Ballast | AS83: 320 Watt MH Lamp, Magnetic ballast | AU83: 75 Watt Compact Fluorescent | BA83: CFL | BB83: 80 Watt Compact Fluorescent | BC83: None | BD83: 1 | BE83: 80 | BF83: 80
A84: 8 | AO84: 300 Watt Incandescent or Halogen Lamp | AR84: 350 Watt MH Lamp, Electronic Ballast | AS84: 350 Watt MH Lamp, Magnetic ballast | AU84: 80 Watt Compact Fluorescent | BA84: CFL | BB84: 85 Watt Compact Fluorescent | BC84: None | BD84: 1 | BE84: 85 | BF84: 85
A85: 9 | AO85: 400 Watt Incandescent or Halogen Lamp | AR85: 400 Watt MH Lamp, Electronic Ballast | AS85: 360 Watt MH Lamp, Magnetic ballast | AU85: 85 Watt Compact Fluorescent | BA85: CFL | BB85: 90 Watt Compact Fluorescent | BC85: None | BD85: 1 | BE85: 90 | BF85: 90
A86: 10 | AO86: 448 Watt Incandescent or Halogen Lamp | AR86: 450 Watt MH Lamp, Electronic Ballast | AS86: 400 Watt MH Lamp, Magnetic ballast | AU86: 90 Watt Compact Fluorescent | BA86: CFL | BB86: 95 Watt Compact Fluorescent | BC86: None | BD86: 1 | BE86: 95 | BF86: 95
A87: 11 | AO87: 500 Watt Incandescent or Halogen Lamp | AS87: 450 Watt MH Lamp, Magnetic ballast | AU87: 95 Watt Compact Fluorescent | BA87: CFL | BB87: 100 Watt Compact Fluorescent | BC87: None | BD87: 1 | BE87: 100 | BF87: 100
A88: 12 | AO88: 750 Watt Incandescent or Halogen Lamp | AS88: 750 Watt MH Lamp, Magnetic ballast | AU88: 100 Watt Compact Fluorescent | BA88: CFL | BB88: 105 Watt Compact Fluorescent | BC88: None | BD88: 1 | BE88: 105 | BF88: 105
A89: 13 | R89: TABLE 2: REPLACEMENT FROM HID | Y89: 2. Fixture Type | AD89: 3. Ballast Type | AO89: 1000 Watt Incandescent or Halogen Lamp | AS89: 1000 Watt MH Lamp, Magnetic ballast | AU89: 105 Watt Compact Fluorescent | BA89: CFL | BB89: 110 Watt Compact Fluorescent | BC89: None | BD89: 1 | BE89: 110 | BF89: 110
A90: 14 | Y90: RFixturereplacingFixture | Z90: RLampreplacingLamp | AA90: RFixturetoRetrofitKit | AD90: RT5R | AE90: RT8R | AF90: RFUTT8R | AG90: RLEDR | AH90: RRetrofitKitR | AO90: 1500 Watt Incandescent or Halogen Lamp | AS90: 1500 Watt MH Lamp, Magnetic ballast | AU90: 110 Watt Compact Fluorescent | BA90: High Pressure Sodium | BB90: 35 Watt HPS Lamp, Magnetic ballast | BC90: Magnetic | BD90: 1 | BE90: 35 | BF90: 46
A91: 15 | Y91: LED | Z91: LED | AA91: Retrofit Kit | AD91: PRS Elec | AE91: Electronic HO | AF91: Electronic | AG91: Flood and Spot LEDs Over 20W | AH91: LED Retrofit Kit | AO91: 2000 Watt Incandescent or Halogen Lamp | BA91: High Pressure Sodium | BB91: 50 Watt HPS Lamp, Magnetic ballast | BC91: Magnetic | BD91: 1 | BE91: 50 | BF91: 66
A92: Subtotal HID Base Case Wattage | N92: =IF(SUM(N77:N91)=0,"",SUM(N77:N91)) ->  | AE92: Electronic Std | AF92: Electronic HO | AG92: Downlight Can Fixture Over 20W | BA92: High Pressure Sodium | BB92: 70 Watt HPS Lamp, Magnetic ballast | BC92: Magnetic | BD92: 1 | BE92: 70 | BF92: 95
A93: Replacement equipment: LED lamps, fixtures, or fixture retrofit kits being installed | AG93: Outdoor Pole/Arm-Mounted Area LEDs | BA93: High Pressure Sodium | BB93: 100 Watt HPS Lamp, Magnetic ballast | BC93: Magnetic | BD93: 1 | BE93: 100 | BF93: 138
A94: # | B94: Measure Type | C94: Retrofit Type | D94: Fixture Type | F94: LED Fixture Sub Type | H94: Description (type in model number) | J94: Lamps/ Fixture | K94: Lamp Wattage | L94: Fixture Quantity | M94: Fixture Wattage | N94: Installed Watts | AG94: Outdoor Wall-Mounted Area LEDs | BA94: High Pressure Sodium | BB94: 150 Watt HPS Lamp, Magnetic ballast | BC94: Magnetic | BD94: 1 | BE94: 150 | BF94: 188
A95: 1 | M95: =IF($H95="","",J95*K95) ->  | N95: =IF((IF($H95="","",M95*L95))=0,"Missing Value",(IF($H95="","",M95*L95))) ->  | AG95: Fuel Pump Canopy LEDs | BA95: High Pressure Sodium | BB95: 200 Watt HPS Lamp, Magnetic ballast | BC95: Magnetic | BD95: 1 | BE95: 200 | BF95: 250
A96: 2 | AG96: Parking Garage LEDs | BA96: High Pressure Sodium | BB96: 250 Watt HPS Lamp, Magnetic ballast | BC96: Magnetic | BD96: 1 | BE96: 250 | BF96: 295
A97: 3 | AG97: High-Bay LEDs | BA97: High Pressure Sodium | BB97: 310 Watt HPS Lamp, Magnetic ballast | BC97: Magnetic | BD97: 1 | BE97: 310 | BF97: 365
A98: 4 | AG98: Low-Bay LEDs | BA98: High Pressure Sodium | BB98: 360 Watt HPS Lamp, Magnetic ballast | BC98: Magnetic | BD98: 1 | BE98: 360 | BF98: 414
A99: 5 | AG99: Indoor Wall-Mounted Area LEDs | BA99: High Pressure Sodium | BB99: 400 Watt HPS Lamp, Magnetic ballast | BC99: Magnetic | BD99: 1 | BE99: 400 | BF99: 465
A100: 6 | AG100: Stairwell and Passageway LEDs | BA100: High Pressure Sodium | BB100: 1000 Watt HPS Lamp, Magnetic ballast | BC100: Magnetic | BD100: 1 | BE100: 1000 | BF100: 1100
A101: 7 | AG101: Signage | BA101: Incan or Halogen | BB101: 110 Watt Incandescent or Halogen Lamp | BC101: None | BD101: 1 | BE101: 110 | BF101: 110
A102: 8 | AG102: Bollards | BA102: Incan or Halogen | BB102: 116 Watt Incandescent or Halogen Lamp | BC102: None | BD102: 1 | BE102: 116 | BF102: 116
A103: 9 | AG103: Display Case LEDs | BA103: Incan or Halogen | BB103: 120 Watt Incandescent or Halogen Lamp | BC103: None | BD103: 1 | BE103: 120 | BF103: 120
A104: 10 | AG104: 1x4 Luminaires | BA104: Incan or Halogen | BB104: 125 Watt Incandescent or Halogen Lamp | BC104: None | BD104: 1 | BE104: 125 | BF104: 125
A105: 11 | AG105: 2x2 Luminaires | BA105: Incan or Halogen | BB105: 130 Watt Incandescent or Halogen Lamp | BC105: None | BD105: 1 | BE105: 130 | BF105: 130
A106: 12 | AG106: 2x4 Luminaires | BA106: Incan or Halogen | BB106: 135 Watt Incandescent or Halogen Lamp | BC106: None | BD106: 1 | BE106: 135 | BF106: 135
A107: 13 | AG107: 1x8 Luminaires | BA107: Incan or Halogen | BB107: 150 Watt Incandescent or Halogen Lamp | BC107: None | BD107: 1 | BE107: 150 | BF107: 150
A108: 14 | BA108: Incan or Halogen | BB108: 160 Watt Incandescent or Halogen Lamp | BC108: None | BD108: 1 | BE108: 160 | BF108: 160
A109: 15 | BA109: Incan or Halogen | BB109: 170 Watt Incandescent or Halogen Lamp | BC109: None | BD109: 1 | BE109: 170 | BF109: 170
A110: Subtotal Installed LED Wattage | N110: =IF(SUM(N95:N109)=0,"",SUM(N95:N109)) ->  | BA110: Incan or Halogen | BB110: 200 Watt Incandescent or Halogen Lamp | BC110: None | BD110: 1 | BE110: 200 | BF110: 200
A111: 4. Controls for Existing LED Fixtures (Refer to Section 1 for Interior Controls) | BA111: Incan or Halogen | BB111: 250 Watt Incandescent or Halogen Lamp | BC111: None | BD111: 1 | BE111: 250 | BF111: 250
BA112: Incan or Halogen | BB112: 300 Watt Incandescent or Halogen Lamp | BC112: None | BD112: 1 | BE112: 300 | BF112: 300
B113: Type of Retrofit | D113: Controlled Fixture | F113: Total Incentive | BA113: Incan or Halogen | BB113: 400 Watt Incandescent or Halogen Lamp | BC113: None | BD113: 1 | BE113: 400 | BF113: 400
D114: Incentive | E114: Watts Reduced | Y114: 2. Fixture Type | AD114: 3. Ballast Type | BA114: Incan or Halogen | BB114: 448 Watt Incandescent or Halogen Lamp | BC114: None | BD114: 1 | BE114: 448 | BF114: 448
B115: Interior | D115: NA | R115: TMeasureType | T115: TRetrofitType | Y115: TFixturereplacingFixture | Z115: TLampreplacingLamp | AA115: TFixturetoRetrofitKit | AD115: FUT12 | AE115: FUT8 | AF115: T12 | AG115: T8 | AH115: F2RK | AI115: T5 | BA115: Incan or Halogen | BB115: 500 Watt Incandescent or Halogen Lamp | BC115: None | BD115: 1 | BE115: 500 | BF115: 500
B116: Exterior/12 Hour | D116: 0.4 | E116: =SUMIFS($N$121:$N$135,$B$121:$B$135,$B116,$D$121:$D$135,D$113) -> 0 | F116: =D116*E116 -> 0 | R116: Interior | T116: Fixture replacing Fixture | Y116: T5 | Z116: T5 | AA116: T5 | AD116: TFUT12T | AE116: TFUT8T | AF116: TT12T | AG116: TT8T | AH116: TFixturetoRetrofitKitT | AI116: TT5T | AN116: FUT12Magnetic | AO116: FUT8Electronic | AP116: FUT8ElectronicHO | AQ116: T12Magnetic | AR116: T8ElectronicHO | AS116: T8ElectronicStd | AT116: T5PRSElec | BA116: Incan or Halogen | BB116: 750 Watt Incandescent or Halogen Lamp | BC116: None | BD116: 1 | BE116: 750 | BF116: 750
B117: 24 Hour/Garage/3-Shift | D117: 0.5 | E117: =SUMIFS($N$121:$N$135,$B$121:$B$135,$B117,$D$121:$D$135,D$113) -> 0 | F117: =D117*E117 -> 0 | R117: Exterior/12 Hour | T117: Lamp replacing Lamp | Y117: T8 | Z117: T8 | AA117: T8 | AD117: Magnetic | AE117: Electronic | AF117: Magnetic | AG117: Electronic HO | AH117: Fixture to Retrofit Kit | AI117: PRS Elec | AN117: (1) U-Tube, T12 STD Lamp, STD Mag Ballast, 34 Watt Lamps | AO117: (1) U-Tube, T8 Standard ballast, 32 Watt Lamp | AP117: (1) U-Tube, T8 High Output Ballast, 32 Watt Lamp | AQ117: (1) 24" T12, STD Lamps, 20 Watt Lamps | AR117: (1) 24", T8, High Output Ballast, 17 Watt Lamps | AS117: (1) 24", T8, Std Elec Ballast, 17 Watt Lamps | AT117: (1) 22" T-5 14W Lamp (1) Prog Start or PRS Ballast, HLO (.95<BF<1.1) | BA117: Incan or Halogen | BB117: 1000 Watt Incandescent or Halogen Lamp | BC117: None | BD117: 1 | BE117: 1000 | BF117: 1000
B118: Controls on Existing LED Fixtures | F118: =SUM(F115:G117) -> 0 | R118: 24 Hour/Garage/3-Shift | T118: Fixture to Retrofit Kit | Y118: T12 | Z118: T12 | AA118: T12 | AE118: Electronic HO | AG118: Electronic Std | AN118: (1) U-Tube, T12 STD Lamp, STD Mag Ballast, 40 Watt Lamps | AO118: (2) U-Tube, T8 Standard ballast, 32 Watt Lamp | AP118: (2) U-Tube, T8 High Output Ballast, 32 Watt Lamp | AQ118: (1) 36" T12, STD Lamps Mag-STD, 30 Watt Lamps | AR118: (1) 36", T8, High Output Ballast, 25 Watt Lamps | AS118: (1) 36", T8, Std Elec Ballast, 25 Watt Lamps | AT118: (1) 22" T-5 24W HO Lamp (1) Prog Start or PRS Ballast, HLO (.95<BF<1) | BA118: Incan or Halogen | BB118: 1500 Watt Incandescent or Halogen Lamp | BC118: None | BD118: 1 | BE118: 1500 | BF118: 1500
A119: Controlled Existing LED Fixture with High and Low Settings | Q119: =+F118 -> 0 | Y119: FUT8 | Z119: FUT8 | AA119: FUT8 | AN119: (2) U-Tube, T12 STD Lamp, STD Mag Ballast, 34 Watt Lamps | AQ119: (1) 48" T12, ES Lamp, Magnetic Ballast-STD, 34 Watt Lamps | AR119: (1) 48", T8, High Output Ballast, 28 Watt Lamps | AS119: (1) 48", T8, Std Ballast, 25 Watt Lamps | AT119: (1) 34" T-5 21W Lamp (1) Prog Start or PRS Ballast, HLO (.95<BF<1.1) | BA119: Incan or Halogen | BB119: 2000 Watt Incandescent or Halogen Lamp | BC119: None | BD119: 1 | BE119: 2000 | BF119: 2000
A120: # | B120: Measure Type | C120: Retrofit Type | D120: Fixture Type | F120: Sub Type | H120: Description (type in) | J120: Fixture Quantity | K120: High Setting Wattage | L120: Low Setting Wattage | M120: Weighted Average Watts Reduced | Y120: FUT12 | Z120: FUT12 | AA120: FUT12 | AN120: (2) U-Tube, T12 STD Lamp, STD Mag Ballast, 40 Watt Lamps | AQ120: (1) 48" T12, STD Lamp, Magnetic Ballast-STD, 40 Watt Lamps | AR120: (1) 48", T8, High Output Ballast, 25 Watt Lamps | AS120: (1) 48", T8, Std Ballast, 28 Watt Lamps | AT120: (1) 34" T-5 39W HO Lamp (1) Prog Start or PRS Ballast, HLO (.95<BF<1.1) | BA120: Mercury Vapor | BB120: 40 Watt MV Lamp | BC120: Magnetic | BD120: 1 | BE120: 40 | BF120: 50
A121: 1 | C121: =IFERROR(VLOOKUP($B121,$R$170:$U$172,3,FALSE),"") ->  | D121: =IFERROR(VLOOKUP($B121,$R$170:$U$172,4,FALSE),"") ->  | E121: =VLOOKUP($B121,$R$170:$U$172,3,FALSE) ->  | N121: =IF((IF($H121="","",(ROUND(((K121-L121)*0.85*J121),0))))=0,"Missing Value",(IF($H121="","",(ROUND(((K121-L121)*0.85*J121),0))))) ->  | AQ121: (1) 48" T12, STD Lamp, Magnetic Ballast-STD, 40 Watt Lamps | AR121: (1) 48", T8, High Output Ballast, 32 Watt Lamps | AS121: (1) 48", T8, Std Ballast, 32 Watt Lamps | AT121: (1) 45.8" T-5 28W Lamp (1) Prog Start or PRS Ballast, HLO (.95<BF<1.1) | BA121: Mercury Vapor | BB121: 50 Watt MV Lamp | BC121: Magnetic | BD121: 1 | BE121: 50 | BF121: 74
A122: 2 | AQ122: (1) 48" T12, HO Lamps, 60 Watt Lamps | AR122: (1) 96", T8, High Output Ballast, 57 Watt Lamps | AS122: (1) 96", T8 Std Ballast, 57 Watt Lamps | AT122: (1) 45.8" T-5 54W HO Lamps (1) Prog RS Ballast, HLO(.95<BF<1.1) | BA122: Mercury Vapor | BB122: 75 Watt MV Lamp | BC122: Magnetic | BD122: 1 | BE122: 75 | BF122: 93
A123: 3 | AQ123: (1) 72" T12, HO Lamps, 85 Watt Lamps | AR123: (1) 96", T8, High Output Ballast, 59 Watt Lamps | AS123: (1) 96", T8 Std Ballast, 59 Watt Lamps | AT123: (1) 57.6" T-5 35W Lamp (1) Prog Start or PRS Ballast, HLO (.95<BF<1.1) | BA123: Mercury Vapor | BB123: 100 Watt MV Lamp | BC123: Magnetic | BD123: 1 | BE123: 100 | BF123: 125
A124: 4 | AQ124: (1) 96" T12, ES HO Lamps Mag-STD, 95 Watt Lamps | AR124: (1) 96", T8, High Output Ballast, 86 Watt Lamps | AS124: (1) 96", T8 Std Ballast, 86 Watt Lamps | AT124: (1) 57.6" T-5 80W HO Lamp (1) Prog Start or PRS Ballast, HLO (.95<BF<1.1) | BA124: Mercury Vapor | BB124: 160 Watt MV self-ballasted Lamp | BC124: Magnetic | BD124: 1 | BE124: 160 | BF124: 160
A125: 5 | AQ125: (1) 96" T12, ES Lamps Mag-STD, 60 Watt Lamps | AR125: (2) 24", T8, High Output Ballast, 17 Watt Lamps | AS125: (2) 24", T8, Std Elec Ballast, 17 Watt Lamps | AT125: (10) 45.8" T-5 54W HO Lamps (5) Prog RS Ballast, HLO (.95<BF<1.1) | BA125: Mercury Vapor | BB125: 175 Watt MV Lamp | BC125: Magnetic | BD125: 1 | BE125: 175 | BF125: 205
A126: 6 | AQ126: (1) 96" T12, STD HO Lamps Mag-STD, 110 Watt Lamps | AR126: (2) 36", T8, High Output Ballast, 25 Watt Lamps | AS126: (2) 36", T8, Std Elec Ballast, 25 Watt Lamps | AT126: (12) 45.8" T-5 54W HO Lamps (6) Prog RS Ballast, HLO (.95<BF<1.1) | BA126: Mercury Vapor | BB126: 250 Watt MV Lamp | BC126: Magnetic | BD126: 1 | BE126: 250 | BF126: 290
A127: 7 | AQ127: (1) 108" T12 F108, HO Lamps, 124 Watt Lamps | AR127: (2) 48", T8, High Output Ballast, 28 Watt Lamps | AS127: (2) 48", T8, Std Ballast, 25 Watt Lamps | AT127: (2) 22" T-5 14W Lamps (1) Prog Start or PRS Ballast, HLO (.95<BF<1.1) | BA127: Mercury Vapor | BB127: 400 Watt MV Lamp | BC127: Magnetic | BD127: 1 | BE127: 400 | BF127: 455
A128: 8 | AQ128: (1) 114" T12 F117, HO Lamps, 132 Watt Lamps | AR128: (2) 48", T8, High Output Ballast, 25 Watt Lamps | AS128: (2) 48", T8, Std Ballast, 28 Watt Lamps | AT128: (2) 22" T-5 24W HO Lamps (1) Prog Start or PRS Ballast, HLO (.95<BF<1) | BA128: Mercury Vapor | BB128: 700 Watt MV Lamp | BC128: Magnetic | BD128: 1 | BE128: 700 | BF128: 780
A129: 9 | AQ129: (2) 24" T12, STD Lamps, 20 Watt Lamps | AR129: (2) 48", T8, High Output Ballast, 32 Watt Lamps | AS129: (2) 48", T8, Std Ballast, 32 Watt Lamps | AT129: (2) 34" T-5 21W Lamps (1) Prog.Start or PRS Ballast HLO (.95<BF<1.1) | BA129: Mercury Vapor | BB129: 1000 Watt MV Lamp | BC129: Magnetic | BD129: 1 | BE129: 1000 | BF129: 1075
A130: 10 | AQ130: (2) 36" T12, STD Lamps Mag-STD, 30 Watt Lamps | AR130: (2) 96", T8, High Output Ballast, 57 Watt Lamps | AS130: (2) 96", T8 Std Ballast, 57 Watt Lamps | AT130: (2) 34" T-5 39W HO Lamps (1) Prog Start or PRS Ballast, HLO (.95<BF<1.1) | BA130: Metal Halide | BB130: 20 Watt MH Lamp, Electronic Ballast | BC130: Electronic | BD130: 1 | BE130: 20 | BF130: 24
A131: 11 | AQ131: (2) 40" T12 F42, HO Lamps, 55 Watt Lamps | AR131: (2) 96", T8, High Output Ballast, 59 Watt Lamps | AS131: (2) 96", T8 Std Ballast, 59 Watt Lamps | AT131: (2) 45.8" T-5 28W Lamps (1) Prog Start or PRS Ballast, HLO (.95<BF<1.1) | BA131: Metal Halide | BB131: 22 Watt MH Lamp, Electronic Ballast | BC131: Electronic | BD131: 1 | BE131: 22 | BF131: 26
A132: 12 | AQ132: (2) 48" T12, ES Lamp, Magnetic Ballast-STD, 34 Watt Lamps | AR132: (2) 96", T8, High Output Ballast, 86 Watt Lamps | AS132: (2) 96", T8 Std Ballast, 86 Watt Lamps | AT132: (2) 45.8" T-5 49W HO Lamps, (1) Prog Start or RS Ballast, HLO (.95<BF<1.1) | BA132: Metal Halide | BB132: 39 Watt MH Lamp, Electronic Ballast | BC132: Electronic | BD132: 1 | BE132: 39 | BF132: 44
A133: 13 | AQ133: (2) 48" T12, HO Lamps, 60 Watt Lamps | AR133: (3) 24", T8, High Output Ballast, 17 Watt Lamps | AS133: (3) 24", T8, Std Elec Ballast, 17 Watt Lamps | AT133: (2) 45.8" T-5 54W HO Lamps (1) Prog RS Ballast, HLO (.95<BF<1.1) | BA133: Metal Halide | BB133: 50 Watt MH Lamp, Electronic Ballast | BC133: Electronic | BD133: 1 | BE133: 50 | BF133: 56
A134: 14 | AQ134: (2) 48" T12, STD Lamp, Magnetic Ballast-STD, 40 Watt Lamps | AR134: (3) 36", T8, High Output Ballast, 25 Watt Lamps | AS134: (3) 36", T8, Std Elec Ballast, 25 Watt Lamps | AT134: (2) 57.6" T-5 35W Lamps (1) Prog Start or PRS Ballast, HLO (.95<BF<1.1) | BA134: Metal Halide | BB134: 70 Watt MH Lamp, Electronic Ballast | BC134: Electronic | BD134: 1 | BE134: 70 | BF134: 78
A135: 15 | Y135: 2. Fixture Type | AD135: 3. Ballast Type | AQ135: (2) 72" T12, HO Lamps, 85 Watt Lamps | AR135: (3) 48", T8, High Output Ballast, 28 Watt Lamps | AS135: (3) 48", T8, Std Ballast, 25 Watt Lamps | AT135: (2) 57.6" T-5 80W HO Lamps (1) Prog Start or PRS Ballast, HLO (.95<BF<1.1) | BA135: Metal Halide | BB135: 100 Watt MH Lamp, Electronic Ballast | BC135: Electronic | BD135: 1 | BE135: 100 | BF135: 109
A136: Subtotal Controls on LED Fixtures | N136: =IF(SUM(N121:N135)=0,"",SUM(N121:N135)) ->  | Y136: RTFixturereplacingFixture | Z136: RTLampreplacingLamp | AA136: RTFixturetoRetrofitKit | AD136: RTLEDR | AE136: RTRetrofitKitR | AQ136: (2) 96" T12, ES HO Lamps Mag-STD, 95 Watt Lamps | AR136: (3) 48", T8, High Output Ballast, 25 Watt Lamps | AS136: (3) 48", T8, Std Ballast, 28 Watt Lamps | AT136: (3) 22" T-5 14W Lamps (2) Prog Start or PRS Ballasts, HLO (.95<BF<1.1) | BA136: Metal Halide | BB136: 150 Watt MH Lamp, Electronic Ballast | BC136: Electronic | BD136: 1 | BE136: 150 | BF136: 163
Y137: LED | Z137: LED | AA137: Retrofit Kit | AD137: Flood and Spot LEDs Over 20W | AE137: LED Retrofit Kit | AQ137: (2) 96" T12, ES Lamps Mag-STD, 60 Watt Lamps | AR137: (3) 48", T8, High Output Ballast, 32 Watt Lamps | AS137: (3) 48", T8, Std Ballast, 32 Watt Lamps | AT137: (3) 22" T-5 24W HO Lamps (2) Prog Start or PRS Ballasts, HLO (.95<BF<1.1) | BA137: Metal Halide | BB137: 175 Watt MH Lamp, Electronic Ballast | BC137: Electronic | BD137: 1 | BE137: 175 | BF137: 191
AD138: Downlight Can Fixture Over 20W | AQ138: (2) 96" T12, STD HO Lamps Mag-STD, 110 Watt Lamps | AR138: (3) 96", T8, High Output Ballast, 57 Watt Lamps | AS138: (3) 96", T8 Std Ballast, 57 Watt Lamps | AT138: (3) 34" T-5 21W Lamps (2) Prog Start or PRS Ballasts, HLO (.95<BF<1.1) | BA138: Metal Halide | BB138: 200 Watt MH Lamp, Electronic Ballast | BC138: Electronic | BD138: 1 | BE138: 200 | BF138: 216
A139: IMPORTANT NOTICE: Only qualified LED lighting is elegible for a rebate. No fluorescent replacements are eligible for rebates. | AD139: Parking Garage LEDs | AQ139: (3) 36" T12, STD Lamps Mag-STD, 30 Watt Lamps | AR139: (4) 36", T8, High Output Ballast, 25 Watt Lamps | AS139: (4) 36", T8, Std Elec Ballast, 25 Watt Lamps | AT139: (3) 45.8" T-5 54W HO Lamps, Prog RS (2) Ballast, HLO (.95<BF<1.1) | BA139: Metal Halide | BB139: 250 Watt MH Lamp, Electronic Ballast | BC139: Electronic | BD139: 1 | BE139: 250 | BF139: 266
AD140: High-Bay LEDs | AQ140: (3) 48" T12, ES Lamp, Magnetic Ballast-STD, 34 Watt Lamps | AR140: (4) 48", T8, High Output Ballast, 28 Watt Lamps | AS140: (4) 48", T8, Std Ballast, 25 Watt Lamps | AT140: (3) 57.6" T-5 35W Lamps (2) Prog Start or PRS Ballasts, HLO (.95<BF<1.1) | BA140: Metal Halide | BB140: 400 Watt MH Lamp, Electronic Ballast | BC140: Electronic | BD140: 1 | BE140: 400 | BF140: 424
A141: Lighting Scope of Work is REQUIRED for all lighting measures. | AD141: Low-Bay LEDs | AQ141: (3) 48" T12, STD Lamp, Magnetic Ballast-STD, 40 Watt Lamps | AR141: (4) 48", T8, High Output Ballast, 25 Watt Lamps | AS141: (4) 48", T8, Std Ballast, 28 Watt Lamps | AT141: (4) 22" T-5 14W Lamps (2) Prog Start or PRS Ballasts, HLO (.95<BF<1.1) | BA141: Metal Halide | BB141: 450 Watt MH Lamp, Electronic Ballast | BC141: Electronic | BD141: 1 | BE141: 450 | BF141: 465
AD142: Indoor Wall-Mounted Area LEDs | AQ142: (3) 96" T12, ES HO Lamps Mag-STD, 95 Watt Lamps | AR142: (4) 48", T8, High Output Ballast, 32 Watt Lamps | AS142: (4) 48", T8, Std Ballast, 32 Watt Lamps | AT142: (4) 22" T-5 24W HO Lamps (2) Prog Start or PRS Ballasts, HLO (.95<BF<1.1) | BA142: Metal Halide | BB142: 32 Watt MH Lamp, Magnetic ballast | BC142: Magnetic | BD142: 1 | BE142: 32 | BF142: 42
A143: In no case will the program pay a rebate for lamps and retrofit kits that have been installed in fixtures with cracked, broken or yellowed lenses. | AD143: Stairwell and Passageway LEDs | AQ143: (3) 96" T12, ES Lamps Mag-STD, 60 Watt Lamps | AR143: (4) 96", T8, High Output Ballast, 57 Watt Lamps | AS143: (4) 96", T8 Std Ballast, 25 Watt Lamps | AT143: (4) 34" T-5 39W HO Lamps (2 )Prog.Start or PRS Ballasts, HLO (.95<BF<1.1) | BA143: Metal Halide | BB143: 39 Watt MH Lamp, Magnetic ballast | BC143: Magnetic | BD143: 1 | BE143: 39 | BF143: 56
AD144: Bollards | AQ144: (3) 96" T12, STD HO Lamps Mag-STD, 110 Watt Lamps | AR144: (4) 96", T8, High Output Ballast, 59 Watt Lamps | AS144: (4) 96", T8 Std Ballast, 57 Watt Lamps | AT144: (4) 34" T-5 39W Lamps (2) Prog Start or PRS Ballasts, HLO (.95<BF<1.1) | BA144: Metal Halide | BB144: 50 Watt MH Lamp, Magnetic ballast | BC144: Magnetic | BD144: 1 | BE144: 50 | BF144: 67
AD145: Display Case LEDs | AQ145: (4) 24" T12, STD Lamps, 20 Watt Lamps | AR145: (4) 96", T8, High Output Ballast, 86 Watt Lamps | AS145: (4) 96", T8 Std Ballast, 59 Watt Lamps | AT145: (4) 45.8" T-5 28W Lamps (2) Prog Start or PRS Ballasts, HLO (.95<BF<1.1) | BA145: Metal Halide | BB145: 70 Watt MH Lamp, Magnetic ballast | BC145: Magnetic | BD145: 1 | BE145: 70 | BF145: 94
AD146: 1x4 Luminaires | AQ146: (4) 36" T12, STD Lamps Mag-STD, 30 Watt Lamps | AR146: (6) 48", T8, High Output Ballast, 28 Watt Lamps | AS146: (4) 96", T8 Std Ballast, 86 Watt Lamps | AT146: (4) 45.8" T-5 49W HO Lamps, (2) Prog Start or RS Ballast, HLO (.95<BF<1.1) | BA146: Metal Halide | BB146: 100 Watt MH Lamp, Magnetic ballast | BC146: Magnetic | BD146: 1 | BE146: 100 | BF146: 127
A147: 1. Lighting Retrofit Specifications | AD147: 2x2 Luminaires | AQ147: (4) 48" T12, ES Lamp, Magnetic Ballast-STD, 34 Watt Lamps | AR147: (6) 48", T8, High Output Ballast, 32 Watt Lamps | AS147: (6) 48", T8, Std Ballast, 28 Watt Lamps | AT147: (4) 45.8" T-5 54W HO Lamps, (2) Prog RS Ballast, HLO (.95<BF<1.1) | BA147: Metal Halide | BB147: 125 Watt MH Lamp, Magnetic ballast | BC147: Magnetic | BD147: 1 | BE147: 125 | BF147: 150
AD148: 2x4 Luminaires | AQ148: (4) 48" T12, STD Lamp, Magnetic Ballast-STD, 40 Watt Lamps | AR148: (6) 96", T8, High Output Ballast, 57 Watt Lamps | AS148: (6) 48", T8, Std Ballast, 32 Watt Lamps | AT148: (4) 45.8" T-5 54W HO Lamps, (2) Prog RS Ballast, HLO (.95<BF<1.1), alt 1 | BA148: Metal Halide | BB148: 150 Watt MH Lamp, Magnetic Ballast | BC148: Magnetic | BD148: 1 | BE148: 150 | BF148: 184
AD149: 1x8 Luminaires | AQ149: (4) 96" T12, ES HO Lamps Mag-STD, 95 Watt Lamps | AR149: (6) 96", T8, High Output Ballast, 59 Watt Lamps | AS149: (6) 96", T8 Std Ballast, 57 Watt Lamps | AT149: (5) 45.9" T-5 54W Lamps (2) Prog.Start or PRS Ballasts, HLO (.95<BF<1.1) | BA149: Metal Halide | BB149: 175 Watt MH Lamp, Magnetic ballast | BC149: Magnetic | BD149: 1 | BE149: 175 | BF149: 209
AQ150: (4) 96" T12, ES Lamps Mag-STD, 60 Watt Lamps | AR150: (6) 96", T8, High Output Ballast, 86 Watt Lamps | AS150: (6) 96", T8 Std Ballast, 59 Watt Lamps | AT150: (6) 45.8" T-5 54W HO Lamps (3) Prog RS Ballast, HLO(.95<BF<1.1) | BA150: Metal Halide | BB150: 200 Watt MH Lamp, Magnetic ballast | BC150: Magnetic | BD150: 1 | BE150: 200 | BF150: 232
AQ151: (4) 96" T12, STD HO Lamps Mag-STD, 110 Watt Lamps | AS151: (6) 96", T8 Std Ballast, 86 Watt Lamps | AT151: (6) 45.8" T-5 54W HO Lamps (3) Prog RS Ballast, HLO(.95<BF<1.1), alt 1 | BA151: Metal Halide | BB151: 250 Watt MH Lamp, Magnetic ballast | BC151: Magnetic | BD151: 1 | BE151: 250 | BF151: 291
AT152: (6) 45.9" T-5 49W HO Lamps, (3) Prog Start or RS Ballast, HLO (.95<BF<1.1) | BA152: Metal Halide | BB152: 320 Watt MH Lamp, Magnetic ballast | BC152: Magnetic | BD152: 1 | BE152: 320 | BF152: 367
AT153: (8) 45.8" T-5 49W HO Lamps, (4) Prog Start or RS Ballast, HLO(.95<BF<1.1) | BA153: Metal Halide | BB153: 350 Watt MH Lamp, Magnetic ballast | BC153: Magnetic | BD153: 1 | BE153: 350 | BF153: 395
BA154: Metal Halide | BB154: 360 Watt MH Lamp, Magnetic ballast | BC154: Magnetic | BD154: 1 | BE154: 360 | BF154: 418
BA155: Metal Halide | BB155: 400 Watt MH Lamp, Magnetic ballast | BC155: Magnetic | BD155: 1 | BE155: 400 | BF155: 456
BA156: Metal Halide | BB156: 450 Watt MH Lamp, Magnetic ballast | BC156: Magnetic | BD156: 1 | BE156: 450 | BF156: 507
BA157: Metal Halide | BB157: 750 Watt MH Lamp, Magnetic ballast | BC157: Magnetic | BD157: 1 | BE157: 750 | BF157: 814
BA158: Metal Halide | BB158: 1000 Watt MH Lamp, Magnetic ballast | BC158: Magnetic | BD158: 1 | BE158: 1000 | BF158: 1077
BA159: Metal Halide | BB159: 1500 Watt MH Lamp, Magnetic ballast | BC159: Magnetic | BD159: 1 | BE159: 1500 | BF159: 1608
A160: 1a. Interior Retrofits | BA160: T8 | BB160: (1) 24", T8, Std Elec Ballast, 17 Watt Lamps | BC160: Electronic Std | BD160: 1 | BE160: 17 | BF160: 16
BA161: T8 | BB161: (1) 24", T8, High Output Ballast, 17 Watt Lamps | BC161: Electronic HO | BD161: 1 | BE161: 17 | BF161: 20
BA162: T8 | BB162: (1) 36", T8, Std Elec Ballast, 25 Watt Lamps | BC162: Electronic Std | BD162: 1 | BE162: 25 | BF162: 23
BA163: T8 | BB163: (1) 36", T8, High Output Ballast, 25 Watt Lamps | BC163: Electronic HO | BD163: 1 | BE163: 25 | BF163: 28
BA164: T8 | BB164: (1) 48", T8, Std Ballast, 25 Watt Lamps | BC164: Electronic Std | BD164: 1 | BE164: 25 | BF164: 23
BA165: T8 | BB165: (1) 48", T8, High Output Ballast, 25 Watt Lamps | BC165: Electronic HO | BD165: 1 | BE165: 25 | BF165: 28
BA166: T8 | BB166: (1) 48", T8, Std Ballast, 28 Watt Lamps | BC166: Electronic Std | BD166: 1 | BE166: 28 | BF166: 25
BA167: T8 | BB167: (1) 48", T8, High Output Ballast, 28 Watt Lamps | BC167: Electronic HO | BD167: 1 | BE167: 28 | BF167: 32
BA168: T8 | BB168: (1) 48", T8, Std Ballast, 32 Watt Lamps | BC168: Electronic Std | BD168: 1 | BE168: 32 | BF168: 30
S169: 2. Fixture Type | BA169: T8 | BB169: (1) 48", T8, High Output Ballast, 32 Watt Lamps | BC169: Electronic HO | BD169: 1 | BE169: 32 | BF169: 36
R170: CMeasureType | T170: Retrofit Type | U170: Fixture Type | BA170: T8 | BB170: (1) 96", T8 Std Ballast, 57 Watt Lamps | BC170: Electronic Std | BD170: 1 | BE170: 57 | BF170: 52
R171: Exterior/12 Hour | T171: LED | U171: Controlled Fixture | BA171: T8 | BB171: (1) 96", T8, High Output Ballast, 57 Watt Lamps | BC171: Electronic HO | BD171: 1 | BE171: 57 | BF171: 59
R172: 24 Hour/Garage/3-Shift | T172: LED | U172: Controlled Fixture | BA172: T8 | BB172: (1) 96", T8 Std Ballast, 59 Watt Lamps | BC172: Electronic Std | BD172: 1 | BE172: 59 | BF172: 55
BA173: T8 | BB173: (1) 96", T8, High Output Ballast, 59 Watt Lamps | BC173: Electronic HO | BD173: 1 | BE173: 59 | BF173: 62
BA174: T8 | BB174: (1) 96", T8 Std Ballast, 86 Watt Lamps | BC174: Electronic Std | BD174: 1 | BE174: 86 | BF174: 82
BA175: T8 | BB175: (1) 96", T8, High Output Ballast, 86 Watt Lamps | BC175: Electronic HO | BD175: 1 | BE175: 86 | BF175: 90
BA176: T8 | BB176: (2) 24", T8, Std Elec Ballast, 17 Watt Lamps | BC176: Electronic Std | BD176: 2 | BE176: 17 | BF176: 32
BA177: T8 | BB177: (2) 24", T8, High Output Ballast, 17 Watt Lamps | BC177: Electronic HO | BD177: 2 | BE177: 17 | BF177: 40
BA178: T8 | BB178: (2) 36", T8, Std Elec Ballast, 25 Watt Lamps | BC178: Electronic Std | BD178: 2 | BE178: 25 | BF178: 46
BA179: T8 | BB179: (2) 36", T8, High Output Ballast, 25 Watt Lamps | BC179: Electronic HO | BD179: 2 | BE179: 25 | BF179: 56
BA180: T8 | BB180: (2) 48", T8, Std Ballast, 25 Watt Lamps | BC180: Electronic Std | BD180: 2 | BE180: 25 | BF180: 46
BA181: T8 | BB181: (2) 48", T8, High Output Ballast, 25 Watt Lamps | BC181: Electronic HO | BD181: 2 | BE181: 25 | BF181: 56
BA182: T8 | BB182: (2) 48", T8, Std Ballast, 28 Watt Lamps | BC182: Electronic Std | BD182: 2 | BE182: 28 | BF182: 50
BA183: T8 | BB183: (2) 48", T8, High Output Ballast, 28 Watt Lamps | BC183: Electronic HO | BD183: 2 | BE183: 28 | BF183: 64
BA184: T8 | BB184: (2) 48", T8, Std Ballast, 32 Watt Lamps | BC184: Electronic Std | BD184: 2 | BE184: 32 | BF184: 60
BA185: T8 | BB185: (2) 48", T8, High Output Ballast, 32 Watt Lamps | BC185: Electronic HO | BD185: 2 | BE185: 32 | BF185: 72
BA186: T8 | BB186: (2) 96", T8 Std Ballast, 57 Watt Lamps | BC186: Electronic Std | BD186: 2 | BE186: 57 | BF186: 100
BA187: T8 | BB187: (2) 96", T8, High Output Ballast, 57 Watt Lamps | BC187: Electronic HO | BD187: 2 | BE187: 57 | BF187: 105
BA188: T8 | BB188: (2) 96", T8 Std Ballast, 59 Watt Lamps | BC188: Electronic Std | BD188: 2 | BE188: 59 | BF188: 109
BA189: T8 | BB189: (2) 96", T8, High Output Ballast, 59 Watt Lamps | BC189: Electronic HO | BD189: 2 | BE189: 59 | BF189: 160
BA190: T8 | BB190: (2) 96", T8 Std Ballast, 86 Watt Lamps | BC190: Electronic Std | BD190: 2 | BE190: 86 | BF190: 164
BA191: T8 | BB191: (2) 96", T8, High Output Ballast, 86 Watt Lamps | BC191: Electronic HO | BD191: 2 | BE191: 86 | BF191: 180
BA192: T8 | BB192: (3) 24", T8, Std Elec Ballast, 17 Watt Lamps | BC192: Electronic Std | BD192: 3 | BE192: 17 | BF192: 48
BA193: T8 | BB193: (3) 24", T8, High Output Ballast, 17 Watt Lamps | BC193: Electronic HO | BD193: 3 | BE193: 17 | BF193: 60
BA194: T8 | BB194: (3) 36", T8, Std Elec Ballast, 25 Watt Lamps | BC194: Electronic Std | BD194: 3 | BE194: 25 | BF194: 69
BA195: T8 | BB195: (3) 36", T8, High Output Ballast, 25 Watt Lamps | BC195: Electronic HO | BD195: 3 | BE195: 25 | BF195: 84
BA196: T8 | BB196: (3) 48", T8, Std Ballast, 25 Watt Lamps | BC196: Electronic Std | BD196: 3 | BE196: 25 | BF196: 69
BA197: T8 | BB197: (3) 48", T8, High Output Ballast, 25 Watt Lamps | BC197: Electronic HO | BD197: 3 | BE197: 25 | BF197: 84
BA198: T8 | BB198: (3) 48", T8, Std Ballast, 28 Watt Lamps | BC198: Electronic Std | BD198: 3 | BE198: 28 | BF198: 75
BA199: T8 | BB199: (3) 48", T8, High Output Ballast, 28 Watt Lamps | BC199: Electronic HO | BD199: 3 | BE199: 28 | BF199: 96
BA200: T8 | BB200: (3) 48", T8, Std Ballast, 32 Watt Lamps | BC200: Electronic Std | BD200: 3 | BE200: 32 | BF200: 90
BA201: T8 | BB201: (3) 48", T8, High Output Ballast, 32 Watt Lamps | BC201: Electronic HO | BD201: 3 | BE201: 32 | BF201: 108
... 119 more rows

Sheet Lighting SOW
A1: App # (office use only): | B1: =IF('Applicant Info'!J3="","",'Applicant Info'!J3) ->  | C1: Please complete all info in the white spaces below:
A2: Business Name: | B2: =IF('Applicant Info'!A20="","",'Applicant Info'!A20) ->  | F2: Date: | G2: =IF('Applicant Info'!K6="", IF('Applicant Info'!K8="","",'Applicant Info'!K8),'Applicant Info'!K6) -> 
A3: Prepared by: | F3: Phone: | G3: =IF('Applicant Info'!D23="","",'Applicant Info'!D23) -> 
A4: Address: | B4: =IF('Applicant Info'!E25="","",'Applicant Info'!E25 &" "&'Applicant Info'!E26 &" " &'Applicant Info'!I26 &" "&'Applicant Info'!K26) ->  | F4: Email: | G4: ='Applicant Info'!$E$24 -> 0
A5: Lighting Scope of Work / Building Audit Form | S5: Annual Savings*
A6: Existing Lighting | J6: Proposed Lighting | S6: *calculated per figures entered on this form; savings are NOT guaranteed
A7: LOCATION | B7: Fixture Type | C7: Lamp | D7: Ballast | E7: Lamps per Fixture | F7: Watts per Fixture | G7: Fixture Qty | H7: Total W | I7: Operating Hours per Week | J7: New or Retrofit | K7: Fixture Type | L7: DLC or Energy Star Qualified? | M7: Fixture or Lamp Model Number | N7: Lamps per Fixture | O7: Watts per Fixture | P7: Fixture Qty | Q7: Total W | R7: Occupancy Control? (Y / N) | S7: Savings (W) | T7: Savings (kWh)
H8: =IF(A8="","",G8*F8) ->  | Q8: =IF(M8="","",O8*P8) ->  | S8: =IF(OR(H8="",Q8=""),"",H8-Q8) ->  | T8: =IF(OR(I8="",S8=""),"",I8*S8*52/1000) -> 
S9: =IF(OR(H9="",Q9=""),"",H9-Q9) ->  | T9: =IF(OR(I9="",S9=""),"",I9*S9*52/1000) -> 
H73: =IF(A73="","",G73*F73) ->  | Q73: =IF(M73="","",O73*P73) ->  | S73: =IF(OR(H73="",Q73=""),"",H73-Q73) ->  | T73: =IF(OR(I73="",S73=""),"",I73*S73*52/1000) -> 
A185: Type | C185: Ballast | E185: Lamps | G185: New or Retro | I185: Control | J185: DLC Energy Star Qualified?
J186: DLC
A187: Incandescent | C187: Magnetic | E187: 1 | G187: New Fixture | I187: YES | J187: EnergyStar
A188: Fluorescent | C188: Electronic | E188: 2 | G188: Retrofit | I188: NO | J188: DNQ
A189: LED Screw-in | C189: Pulse-start | E189: 3 | G189: Remove | I189: Ceiling
A190: Screw-in CFL | C190: N/A | E190: 4 | I190: Wall
A191: Hardwired CFL | E191: 5
A192: 2x4 Troffer | E192: 6
A193: 2x2 Troffer | E193: 7
A194: 2' Strip | E194: 8
A195: 4' Strip | E195: 9
A196: 6' Strip | E196: 10
A197: 8' Strip
A198: Wallpack
A199: Pole
A200: HID
A201: Exit INC
A202: Exit LED
A203: LED Lamp
A204: LED Fixture
A205: LED Sign
A206: HighBay T8
A207: HighBay T5
A208: Other
A211: Type2
A212: LED Screw-in
A213: LED 2x4 Troffer
A214: LED 2x2 Troffer
A215: 2' LED Strip
A216: 4' LED Strip
A217: 6' LED Strip
A218: 8' LED Strip
A219: LED Wallpack
A220: LED Pole Fixture
A221: LED Sign
A222: Other

Sheet HVAC
B1: HVAC INCENTIVES | L1: USE THIS SECTION TO REPLACE THE TABLE IN THE SPECS WORKSHEET
A2: Applicant: fill in gray fields at bottom | B2: Click here for instructions to complete this worksheet
A3: Equipment Type | D3: Size Category | G3: Qualifying Efficiency* | H3: Incentive (per ton) | I3: Efficiency Bonus | L3: Equipment Type | M3: Size Category | P3: Qualifying Efficiency* | Q3: Incentive (per ton) | R3: Efficiency Bonus
A4: Unitary and Split Air Conditioning Systems | D4: < 65,000 Btu/h (5.4 tons) | G4: 14.0 SEER and 12.0 EER | H4: 25 | I4: 15 | L4: Unitary and Split Air Conditioning Systems | M4: < 65,000 Btu/h (5.4 tons) | P4: 14.0 SEER and 12.0 EER | Q4: 25 | R4: 15
D5: ≥ 65,000 Btu/h and < 135,000 Btu/h (5.4-11.25 tons) | G5: 12.0 EER** | M5: ≥ 65,000 Btu/h and < 135,000 Btu/h (5.4-11.25 tons) | P5: 12.0 EER**
D7: ≥ 135,000 Btu/h and < 240,000 Btu/h (11.25-20 tons) | G7: 12.0 EER** | M7: ≥ 135,000 Btu/h and < 240,000 Btu/h (11.25-20 tons) | P7: 12.0 EER**
D9: ≥ 240,000 Btu/h and < 760,000 Btu/h (20-63 Tons) | G9: 10.8 EER** | M9: ≥ 240,000 Btu/h and < 760,000 Btu/h (20-63 Tons) | P9: 10.8 EER**
D11: ≥ 760,000 Btu/h (> 63 tons) | G11: 10.2 EER** | M11: ≥ 760,000 Btu/h (> 63 tons) | P11: 10.2 EER**
A13: Air Source Heat Pumps | D13: < 65,000 Btu/h (5.4 tons) | G13: 14 SEER and 12.0 EER and 7.7 HSPF | H13: 40 | I13: 15 | L13: Air Source Heat Pumps | M13: < 65,000 Btu/h (5.4 tons) | P13: 14 SEER and 12.0 EER and 7.7 HSPF | Q13: 40 | R13: 15
D14: ≥ 65,000 Btu/h and < 135,000 Btu/h (5.4-11.25 tons) | G14: 11.6 EER** and 3.2 COP | M14: ≥ 65,000 Btu/h and < 135,000 Btu/h (5.4-11.25 tons) | P14: 11.6 EER** and 3.2 COP
D16: ≥ 135,000 Btu/h and < 240,000 Btu/h (11.25-20 tons) | G16: 11.2 EER** and 3.1 COP | M16: ≥ 135,000 Btu/h and < 240,000 Btu/h (11.25-20 tons) | P16: 11.2 EER** and 3.1 COP
D18: ≥ 240,000 Btu/h and < 760,000 Btu/h (20-63 Tons) | G18: 10.0 EER** and 3.1 COP | M18: ≥ 240,000 Btu/h and < 760,000 Btu/h (20-63 Tons) | P18: 10.0 EER** and 3.1 COP
A20: Chillers: Water-Cooled, Centrifugal*** | D20: ≤ 150 tons | G20: 0.569 kW/ton-IPLV | H20: 20 | I20: 20 | L20: Chillers: Water-Cooled, Centrifugal | M20: ≤ 150 tons | P20: 0.569 kW/ton-IPLV | Q20: 20 | R20: 20
D21: >150 tons and ≤ 300 tons | G21: 0.507 kW/ton-IPLV | M21: >150 tons and ≤ 300 tons | P21: 0.507 kW/ton-IPLV
D22: > 300 tons | G22: 0.467 kW/ton-IPLV | M22: > 300 tons | P22: 0.467 kW/ton-IPLV
A23: Chillers: Water Cooled Scroll or Helical-Rotary*** | D23: ≤ 150 tons | G23: 0.575 kW/ton-IPLV | L23: Chillers: Water Cooled Scroll or Helical-Rotary | M23: ≤ 150 tons | P23: 0.575 kW/ton-IPLV
D24: >150 tons and ≤ 300 tons | G24: 0.534 kW/ton-IPLV | M24: >150 tons and ≤ 300 tons | P24: 0.534 kW/ton-IPLV
D25: > 300 tons | G25: 0.486 kW/ton-IPLV | M25: > 300 tons | P25: 0.486 kW/ton-IPLV
A26: Chillers: Water-Cooled Reciprocating, All | D26: ALL | G26: 0.592 kW/ton-IPLV | L26: Chillers: Water-Cooled Reciprocating, All | M26: ALL | P26: 0.592 kW/ton-IPLV
A27: Chillers: Air-Cooled, All | D27: ALL | G27: 0.867 kW/ton-IPLV | H27: 40 | I27: 20 | L27: Chillers: Air-Cooled, All | M27: ALL | P27: 0.867 kW/ton-IPLV | Q27: 40 | R27: 20
A28: Packaged Terminal AC | D28: ALL | G28: 12.5-(0.213 x Btu/h/1000) EER | H28: 50 | I28: 0 | L28: Packaged Terminal AC | M28: ALL | P28: 12.5-(0.213 x Btu/h/1000) EER | Q28: 50 | R28: 0
A29: Packaged Terminal HP | D29: ALL | G29: 12.3-(0.213 x Btu/h/1000) EER | H29: 100 | L29: Packaged Terminal HP | M29: ALL | P29: 12.3-(0.213 x Btu/h/1000) EER | Q29: 100
A30: Variable Refrigerant Flow HP | D30: < 65,000 Btu/h (5.4 tons) | G30: 15.6 SEER and 8.9 HSPF | H30: 40 | I30: 20 | L30: Variable Refrigerant Flow HP | M30: < 65,000 Btu/h (5.4 tons) | P30: 15.6 SEER and 8.9 HSPF | Q30: 40 | R30: 20
D31: ≥ 65,000 Btu/h and < 135,000 Btu/h (5.4-11.25 tons) | G31: 14.8 IEER and 4.0 COP | H31: 40 | I31: 25 | M31: ≥ 65,000 Btu/h and < 135,000 Btu/h (5.4-11.25 tons) | P31: 14.8 IEER and 4.0 COP | Q31: 40 | R31: 25
D32: ≥ 135,000 Btu/h and < 240,000 Btu/h (11.25-20 tons) | G32: 14.2 IEER and 3.2 COP | M32: ≥ 135,000 Btu/h and < 240,000 Btu/h (11.25-20 tons) | P32: 14.2 IEER and 3.2 COP
D33: ≥ 240,000 Btu/h (20 Tons) | G33: 12.7 IEER and 3.7 COP | M33: ≥ 240,000 Btu/h (20 Tons) | P33: 12.7 IEER and 3.7 COP
A34: Equipment Model | B34: Tons | C34: Efficiency Rating | D34: Quantity | E34: Equipment Type | G34: Size Category | I34: Incentive
I35: =IF(E35="","",IF(LEFT(E35,1)<>"C",B35*D35*IF(VLOOKUP(CONCATENATE(E35,G35),$K$108:$N$134,2,FALSE)>C35,0,VLOOKUP(CONCATENATE(E35,G35),$K$108:$N$134,3,FALSE)+(C35-(VLOOKUP(CONCATENATE(E35,G35),$K$108:$N$134,2,FALSE)))*(VLOOKUP(CONCATENATE(E35,G35),$K$108:$N$134,4,FALSE))),B35*D35*IF(VLOOKUP(CONCATENATE(E35,G35),$K$108:$N$134,2,FALSE)<C35,0,VLOOKUP(CONCATENATE(E35,G35),$K$108:$N$134,3,FALSE)+((VLOOKUP(CONCATENATE(E35,G35),$K$108:$N$134,2,FALSE))-C35)*(VLOOKUP(CONCATENATE(E35,G35),$K$108:$N$134,4,FALSE))/0.1))) -> 
A43: Total HVAC Incentives | I43: =SUM(I35:I42) -> 0
A45: Guest Room Energy Management System
A46: Type/ Description | C46: Incentive Unit | E46: Unit Size (tons) | G46: Quantity | H46: Incentive/ Ton | I46: Incentive
A47: Hotel Guest Room Occupancy Sensor | C47: Per Ton Per Room | H47: 60 | I47: =IF(G47*H47*E47=0,"",G47*H47*E47) -> 
A48: Hotel Guest Room Occupancy Sensor | C48: Per Ton Per Room | H48: 60 | I48: =IF(G48*H48*E48=0,"",G48*H48*E48) -> 
A49: Hotel Guest Room Occupancy Sensor | C49: Per Ton Per Room | H49: 60 | I49: =IF(G49*H49*E49=0,"",G49*H49*E49) -> 
A50: Total GREM Incentives | I50: =IF(SUM(I47:I49)=0,"",SUM(I47:I49)) -> 
A52: Indirect Evaporative Cooling
A53: Type/ Description | C53: Number of HMX Units | D53: Tons/ HMX | E53: Equivalent Tons | G53: Quantity | H53: Incentive/ Ton | I53: Incentive
D54: 0.66 | E54: =C54*D54 -> 0 | H54: 100 | I54: =IF(G54*H54*E54=0,"",G54*H54*E54) -> 
D55: 0.66 | E55: =C55*D55 -> 0 | H55: 100 | I55: =IF(G55*H55*E55=0,"",G55*H55*E55) -> 
D56: 0.66 | E56: 0 | H56: 100 | I56: =IF(G56*H56*E56=0,"",G56*H56*E56) -> 
A57: Total Indirect Evaporative Cooling Incentives | I57: =IF(SUM(I54:I56)=0,"",SUM(I54:I56)) -> 
A58: HMX = Heat Mass Exchange units
A59: Total All HVAC Form Incentives | H59: =SUM(I43,I50,I57) -> 0
A60: * Use SEER for Unitary and Split Units less than 5.4 tons and EER for units larger than 5.4 tons; values available from CEE 2012 Tier 2; Use IEER for VRF Units; IPLV values based on ASHRAE 90.1 2010; see specifications page for complete list. Attach AHRI Rating Sheet. ** Units with electric resistance heating must have EER values 0.2 higher than the efficiencies listed. *** Unit efficiency for chillers should be provided in kW per ton – IPLV where IPLV = Integrated Part Load Value; values based on ASHRAE 90.1 2010. Attach manufacturer's rating sheet for credit.
A65: INSTRUCTIONS TO COMPLETE THIS WORKSHEET:
A66: Equipment Model: | B66: Enter the equipment model as shown on the invoice; provide the specification sheet(s) that accompany the model
A67: Tons: | B67: Enter the equipment tonnage from the AHRI or manufacturer specification sheet
A68: Efficiency Rating: | B68: Enter the equipment efficiency rating from the AHRI or manufacturer specification sheet; for chillers, kW/ton = 12/IPLV EER
A69: Quantity: | B69: Enter the number of units that fit this size and efficiency rating
A70: Equipment Type: | B70: Enter the equipment type from the drop-down menu
A71: Size Category: | B71: Enter the equipment size from the drop-down menu
A74: HVAC Specifications
K84: Unitary and Split Air Conditioning Systems
K85: Air Source Heat Pumps
K86: Chillers: Water-Cooled: Centrifugal
K87: Chillers: Water-Cooled: Scroll or Screw
K88: Chillers: Water-Cooled: Reciprocating
K89: Chillers: Air-Cooled
K90: Packaged Terminal AC
K91: Packaged Terminal HP
K92: Variable Refrigerant Flow HP
K95: < 65,000 Btu/h (5.4 tons)
K96: ≥ 65,000 Btu/h and < 135,000 Btu/h (5.4-11.25 tons)
K97: ≥ 135,000 Btu/h and < 240,000 Btu/h (11.25-20 tons)
K98: ≥ 240,000 Btu/h and < 760,000 Btu/h (20-63 Tons)
K99: ≥ 760,000 Btu/h (> 63 tons)
K100: ≤ 150 tons
K101: >150 tons and ≤ 300 tons
K102: > 300 tons
K103: ALL
L108: Level Normal | M108: Incentive | N108: Bonus | O108: Level 2 | P108: Level 3 | Q108: Level 4 | R108: Min | S108: Max
K110: Unitary and Split Air Conditioning Systems< 65,000 Btu/h (5.4 tons) | L110: 14 | M110: 25 | N110: 15 | O110: =L110+1 -> 15 | P110: =O110+1 -> 16 | Q110: 17 | R110: 0 | S110: 5.4
K111: Unitary and Split Air Conditioning Systems≥ 65,000 Btu/h and < 135,000 Btu/h (5.4-11.25 tons) | L111: 12 | M111: 25 | N111: 15 | O111: =L111+1 -> 13 | P111: 14 | Q111: 15
K112: Unitary and Split Air Conditioning Systems≥ 135,000 Btu/h and < 240,000 Btu/h (11.25-20 tons) | L112: 12 | M112: 25 | N112: 15 | O112: =L112+1 -> 13 | P112: 14 | Q112: 15 | R112: 11.25 | S112: 20
K113: Unitary and Split Air Conditioning Systems≥ 240,000 Btu/h and < 760,000 Btu/h (20-63 Tons) | L113: 10.8 | M113: 25 | N113: 15 | O113: =L110+1 -> 15 | P113: =O110+1 -> 16 | Q113: =P110+1 -> 17 | R113: 20 | S113: 63
K114: Unitary and Split Air Conditioning Systems≥ 760,000 Btu/h (> 63 tons) | L114: 10.2 | M114: 25 | N114: 15 | O114: =L114+1 -> 11.2 | P114: 12.2 | Q114: 13.2 | R114: 63 | S114: 100000
K115: Air Source Heat Pumps< 65,000 Btu/h (5.4 tons) | L115: 14 | M115: 40 | N115: 15 | O115: =L115+1 -> 15 | P115: 16 | Q115: 17 | R115: 0 | S115: 5.4
K116: Air Source Heat Pumps≥ 65,000 Btu/h and < 135,000 Btu/h (5.4-11.25 tons) | L116: 11.6 | M116: 40 | N116: 15 | O116: =L116+1 -> 12.6 | P116: 13.6 | Q116: 14.6 | R116: 5.4 | S116: 11.25
K117: Air Source Heat Pumps≥ 135,000 Btu/h and < 240,000 Btu/h (11.25-20 tons) | L117: 11.2 | M117: 40 | N117: 15 | O117: =L117+1 -> 12.2 | P117: 13.2 | Q117: 14.2 | R117: 11.25 | S117: 20
K118: Air Source Heat Pumps≥ 240,000 Btu/h and < 760,000 Btu/h (20-63 Tons) | L118: 10 | M118: 40 | N118: 15 | O118: =L115+1 -> 15 | P118: =O115+1 -> 16 | Q118: =P115+1 -> 17 | R118: 20 | S118: 63
K119: Air Source Heat Pumps≥ 760,000 Btu/h (> 63 tons) | L119: 10 | M119: 40 | N119: 15 | O119: =L119+1 -> 11 | P119: =O119+1 -> 12 | Q119: 13 | R119: 63 | S119: 100000
K120: Chillers: Water-Cooled: Centrifugal≤ 150 tons | L120: 0.569 | M120: 20 | N120: 20 | O120: 0.54 | P120: =ROUNDUP(L120/0.9*0.7,2) -> 0.45 | Q120: =ROUNDUP(L120/0.9*0.6,2) -> 0.38 | R120: 0 | S120: 150
K121: Chillers: Water-Cooled: Centrifugal>150 tons and ≤ 300 tons | L121: 0.507 | M121: 20 | N121: 20 | O121: 0.48 | P121: 0.4 | Q121: 0.34 | R121: 150 | S121: 300
K122: Chillers: Water-Cooled: Centrifugal> 300 tons | L122: 0.467 | M122: 20 | N122: 20 | O122: 0.44 | P122: 0.37 | Q122: 0.32 | R122: 300 | S122: 100000
K123: Chillers: Water-Cooled: ReciprocatingALL | L123: 0.592 | M123: 20 | N123: 20 | O123: 0.54 | P123: 0.47 | Q123: 0.4 | R123: 0 | S123: 75
K124: Chillers: Water-Cooled: Scroll or Screw≤ 150 tons | L124: 0.575 | M124: 20 | N124: 20 | O124: 0.54 | P124: 0.45 | Q124: 0.39 | R124: 75 | S124: 150
K125: Chillers: Water-Cooled: Scroll or Screw>150 tons and ≤ 300 tons | L125: 0.534 | M125: 20 | N125: 20 | O125: 0.5 | P125: 0.42 | Q125: 0.36 | R125: 150 | S125: 300
K126: Chillers: Water-Cooled: Scroll or Screw> 300 tons | L126: 0.486 | M126: 20 | N126: 20 | O126: 0.46 | P126: 0.38 | Q126: 0.33 | R126: 300 | S126: 100000
K127: Chillers: Air-CooledALL | L127: 0.867 | M127: 40 | N127: 20 | O127: =ROUND(L127/0.9*0.8,2) -> 0.77 | P127: 0.68 | Q127: 0.58 | R127: 0 | S127: 150
K128: Chillers: Air-Cooled> 150 tons | L128: 0.867 | M128: 15 | N128: 20 | O128: =ROUND(L128/0.9*0.8,2) -> 0.77 | P128: 0.68 | Q128: 0.58 | R128: 150 | S128: 100000
K129: Packaged Terminal ACALL | L129: =12.5-(0.213*B35*12000/1000) -> 12.5 | M129: 50 | N129: 0 | O129: =L129+1 -> 13.5 | P129: =O129+1 -> 14.5 | Q129: 15.5 | R129: 0 | S129: 100000
K130: Packaged Terminal HPALL | L130: =12.3-(0.213*B36*12000/1000) -> 12.3 | M130: 100 | N130: 0 | O130: 13.3 | P130: 14.3 | Q130: 15.3 | R130: 0 | S130: 100000
K131: Variable Refrigerant Flow HP≥ 65,000 Btu/h and < 135,000 Btu/h (5.4-11.25 tons) | L131: 14.8 | M131: 40 | N131: 25 | O131: 15.8 | P131: 16.8 | Q131: 17.8 | R131: 5.4 | S131: 11.25
K132: Variable Refrigerant Flow HP≥ 135,000 Btu/h and < 240,000 Btu/h (11.25-20 tons) | L132: 14.2 | M132: 40 | N132: 25 | O132: 15.2 | P132: 16.2 | Q132: 17.2 | R132: 11.25 | S132: 20
K133: Variable Refrigerant Flow HP≥ 240,000 Btu/h and < 760,000 Btu/h (20-63 Tons) | L133: 12.7 | M133: 40 | N133: 25 | O133: 13.7 | P133: 14.7 | Q133: 15.7 | R133: 20 | S133: 63
K134: Variable Refrigerant Flow HP< 65,000 Btu/h (5.4 tons) | L134: 15.6 | M134: 40 | N134: 25 | O134: 16.6 | P134: 17.6 | Q134: 18.6 | R134: 63 | S134: 100000
O136: **used stated values for Level 2, if available. Else was rounded up to the 10s of watts

Sheet Motors & VSDs
C1: MOTORS & VARIABLE SPEED DRIVES INCENTIVES
A2: Applicant: fill in gray fields at bottom
P3: Validation
A4: Premium-Efficiency Motors - Minimum Qualifying Efficiencies | X4: Concatenate | Y4: Baseline Efficiency
A5: Horsepower | C5: 1200 RPM | E5: 1800 RPM | G5: 3600 RPM | I5: Incentive per 0.1% efficiency improvement over baseline efficiencies | O5: 1 | P5: 1200 | Q5: Open | U5: 1 | V5: 1200 | W5: Open | X5: 11200Open | Y5: 0.825
C6: Open | D6: Closed | E6: Open | F6: Closed | G6: Open | H6: Closed | O6: 1.5 | P6: 1800 | Q6: Closed | U6: 1.5 | V6: 1200 | W6: Open | X6: 1.51200Open | Y6: 0.865
A7: 1 | C7: 0.825 | D7: 0.855 | E7: 0.77 | F7: 0.825 | G7: 0.855 | H7: 0.77 | I7: 2 | O7: 2 | P7: 3600 | U7: 2 | V7: 1200 | W7: Open | X7: 21200Open | Y7: 0.875
A8: 1.5 | C8: 0.865 | D8: 0.865 | E8: 0.84 | F8: 0.875 | G8: 0.865 | H8: 0.84 | I8: 3 | O8: 3 | U8: 3 | V8: 1200 | W8: Open | X8: 31200Open | Y8: 0.885
A9: 2 | C9: 0.875 | D9: 0.865 | E9: 0.855 | F9: 0.885 | G9: 0.865 | H9: 0.855 | I9: 4 | O9: 5 | U9: 5 | V9: 1200 | W9: Open | X9: 51200Open | Y9: 0.895
A10: 3 | C10: 0.885 | D10: 0.895 | E10: 0.855 | F10: 0.895 | G10: 0.895 | H10: 0.865 | I10: 6 | O10: 7.5 | U10: 7.5 | V10: 1200 | W10: Open | X10: 7.51200Open | Y10: 0.902
A11: 5 | C11: 0.895 | D11: 0.895 | E11: 0.865 | F11: 0.895 | G11: 0.895 | H11: 0.885 | I11: 10 | O11: 10 | U11: 10 | V11: 1200 | W11: Open | X11: 101200Open | Y11: 0.917
A12: 7.5 | C12: 0.902 | D12: 0.91 | E12: 0.885 | F12: 0.91 | G12: 0.917 | H12: 0.895 | I12: 17 | O12: 15 | U12: 15 | V12: 1200 | W12: Open | X12: 151200Open | Y12: 0.917
A13: 10 | C13: 0.917 | D13: 0.917 | E13: 0.895 | F13: 0.91 | G13: 0.917 | H13: 0.902 | I13: 22 | O13: 20 | U13: 20 | V13: 1200 | W13: Open | X13: 201200Open | Y13: 0.924
A14: 15 | C14: 0.917 | D14: 0.93 | E14: 0.902 | F14: 0.917 | G14: 0.924 | H14: 0.91 | I14: 33 | O14: 25 | U14: 25 | V14: 1200 | W14: Open | X14: 251200Open | Y14: 0.93
A15: 20 | C15: 0.924 | D15: 0.93 | E15: 0.91 | F15: 0.917 | G15: 0.93 | H15: 0.91 | I15: 44 | O15: 30 | U15: 30 | V15: 1200 | W15: Open | X15: 301200Open | Y15: 0.936
A16: 25 | C16: 0.93 | D16: 0.936 | E16: 0.917 | F16: 0.93 | G16: 0.936 | H16: 0.917 | I16: 65 | O16: 40 | U16: 40 | V16: 1200 | W16: Open | X16: 401200Open | Y16: 0.941
A17: 30 | C17: 0.936 | D17: 0.941 | E17: 0.917 | F17: 0.93 | G17: 0.936 | H17: 0.917 | I17: 77 | O17: 50 | U17: 50 | V17: 1200 | W17: Open | X17: 501200Open | Y17: 0.941
A18: 40 | C18: 0.941 | D18: 0.941 | E18: 0.924 | F18: 0.941 | G18: 0.941 | H18: 0.924 | I18: 102 | O18: 60 | U18: 60 | V18: 1200 | W18: Open | X18: 601200Open | Y18: 0.945
A19: 50 | C19: 0.941 | D19: 0.945 | E19: 0.93 | F19: 0.941 | G19: 0.945 | H19: 0.93 | I19: 127 | O19: 75 | U19: 75 | V19: 1200 | W19: Open | X19: 751200Open | Y19: 0.945
A20: 60 | C20: 0.945 | D20: 0.95 | E20: 0.936 | F20: 0.945 | G20: 0.95 | H20: 0.936 | I20: 200 | O20: 100 | U20: 100 | V20: 1200 | W20: Open | X20: 1001200Open | Y20: 0.95
A21: 75 | C21: 0.945 | D21: 0.95 | E21: 0.936 | F21: 0.945 | G21: 0.954 | H21: 0.936 | I21: 250 | O21: 125 | U21: 125 | V21: 1200 | W21: Open | X21: 1251200Open | Y21: 0.95
A22: 100 | C22: 0.95 | D22: 0.954 | E22: 0.936 | F22: 0.95 | G22: 0.954 | H22: 0.941 | I22: 325 | O22: 150 | U22: 150 | V22: 1200 | W22: Open | X22: 1501200Open | Y22: 0.954
A23: 125 | C23: 0.95 | D23: 0.954 | E23: 0.941 | F23: 0.95 | G23: 0.954 | H23: 0.95 | I23: 400 | O23: 200 | U23: 200 | V23: 1200 | W23: Open | X23: 2001200Open | Y23: 0.954
A24: 150 | C24: 0.954 | D24: 0.958 | E24: 0.941 | F24: 0.958 | G24: 0.958 | H24: 0.95 | I24: 475 | U24: 1 | V24: 1200 | W24: Closed | X24: 11200Closed | Y24: 0.855
A25: 200 | C25: 0.954 | D25: 0.958 | E25: 0.95 | F25: 0.958 | G25: 0.962 | H25: 0.954 | I25: 625 | U25: 1.5 | V25: 1200 | W25: Closed | X25: 1.51200Closed | Y25: 0.865
U26: 2 | V26: 1200 | W26: Closed | X26: 21200Closed | Y26: 0.865
A27: Motor Make/Model | C27: Quantity | D27: Motor Size (HP) (dropdown) | E27: Motor Speed (rpm) (dropdown) | F27: Motor Type (open/closed) (dropdown) | G27: Baseline Efficiency | H27: Actual Motor Efficiency | I27: Total Incentive | O27: Concatenate | U27: 3 | V27: 1200 | W27: Closed | X27: 31200Closed | Y27: 0.895
G28: =IF(ISNA(VLOOKUP(O28,$X$5:$Y$118,2,0))=TRUE,"",(VLOOKUP(O28,$X$5:$Y$118,2,0))) ->  | I28: =IF(H28="","",IF(OR(ISNA((H28-G28)*1000*VLOOKUP(D28,$A$7:$I$25,8,0)),H28<G28)=TRUE,"",((H28-G28)*1000*VLOOKUP(D28,$A$7:$I$25,9,0)*C28))) ->  | O28: =CONCATENATE(D28,E28,F28) ->  | U28: 5 | V28: 1200 | W28: Closed | X28: 51200Closed | Y28: 0.895
G29: =IF(ISNA(VLOOKUP(O29,$X$5:$Y$118,2,0))=TRUE,"",(VLOOKUP(O29,$X$5:$Y$118,2,0))) ->  | I29: =IF(H29="","",IF(OR(ISNA((H29-G29)*1000*VLOOKUP(D29,$A$7:$I$25,8,0)),H29<G29)=TRUE,"",((H29-G29)*1000*VLOOKUP(D29,$A$7:$I$25,9,0)*C29))) ->  | O29: =CONCATENATE(D29,E29,F29) ->  | U29: 7.5 | V29: 1200 | W29: Closed | X29: 7.51200Closed | Y29: 0.91
U30: 10 | V30: 1200 | W30: Closed | X30: 101200Closed | Y30: 0.917
U31: 15 | V31: 1200 | W31: Closed | X31: 151200Closed | Y31: 0.93
U32: 20 | V32: 1200 | W32: Closed | X32: 201200Closed | Y32: 0.93
U33: 25 | V33: 1200 | W33: Closed | X33: 251200Closed | Y33: 0.936
U34: 30 | V34: 1200 | W34: Closed | X34: 301200Closed | Y34: 0.941
U35: 40 | V35: 1200 | W35: Closed | X35: 401200Closed | Y35: 0.941
A36: Total Motors Incentives | I36: =SUM(I28:J35) -> 0 | L36: =I36 -> 0 | U36: 50 | V36: 1200 | W36: Closed | X36: 501200Closed | Y36: 0.945
U37: 60 | V37: 1200 | W37: Closed | X37: 601200Closed | Y37: 0.95
A38: Variable Speed Drive on HVAC Motors Incentives (when adding VSDs where none existed before) | U38: 75 | V38: 1200 | W38: Closed | X38: 751200Closed | Y38: 0.95
U39: 100 | V39: 1200 | W39: Closed | X39: 1001200Closed | Y39: 0.954
A40: VSD Application Description | F40: VSD Size (HP) | G40: Incentive Unit | H40: Incentive/ Unit* | I40: Quantity | J40: Incentive ($100/hp) | K40: Recommended increase | L40: kWh | M40: Cost | N40: New | U40: 125 | V40: 1200 | W40: Closed | X40: 1251200Closed | Y40: 0.954
G41: per HP | H41: 100 | J41: =IF($A41="","",$F41*$I41*$H41) ->  | K41: 70 | L41: =1757*F41*I41 -> 0 | M41: =J41/L41 ->  | N41: =O41/L41 ->  | O41: =F41*I41*K41 -> 0 | U41: 150 | V41: 1200 | W41: Closed | X41: 1501200Closed | Y41: 0.958
G42: per HP | H42: 100 | J42: =F42*I42*H42 -> 0 | K42: 70 | U42: 200 | V42: 1200 | W42: Closed | X42: 2001200Closed | Y42: 0.958
G43: per HP | H43: 100 | J43: 0 | K43: 70 | U43: 1 | V43: 1800 | W43: Open | X43: 11800Open | Y43: 0.77
G44: per HP | H44: 100 | J44: 0 | K44: 70 | U44: 1.5 | V44: 1800 | W44: Open | X44: 1.51800Open | Y44: 0.84
G45: per HP | H45: 100 | J45: 0 | K45: 70 | U45: 2 | V45: 1800 | W45: Open | X45: 21800Open | Y45: 0.855
G46: per HP | H46: 100 | J46: 0 | K46: 70 | U46: 3 | V46: 1800 | W46: Open | X46: 31800Open | Y46: 0.855
G47: per HP | H47: 100 | J47: 0 | K47: 70 | U47: 5 | V47: 1800 | W47: Open | X47: 51800Open | Y47: 0.865
G48: per HP | H48: 100 | J48: 0 | K48: 70 | U48: 7.5 | V48: 1800 | W48: Open | X48: 7.51800Open | Y48: 0.885
G49: per HP | H49: 100 | J49: 0 | K49: 70 | U49: 10 | V49: 1800 | W49: Open | X49: 101800Open | Y49: 0.895
G50: per HP | H50: 100 | J50: 0 | K50: 70 | L50: =J51 -> 0 | U50: 15 | V50: 1800 | W50: Open | X50: 151800Open | Y50: 0.902
A51: Total VSD Incentives | J51: =SUM(J41:J50) -> 0 | L51: =L36+L50 -> 0 | U51: 20 | V51: 1800 | W51: Open | X51: 201800Open | Y51: 0.91
A52: *The variable speed drive incentive is calculated based on the horsepower (HP) that is actually being controlled, not necessarily the size of the VSD. This section for HVAC only; for VSD's on non-HVAC equipment, use the Custom tab. | U52: 25 | V52: 1800 | W52: Open | X52: 251800Open | Y52: 0.917
U53: 30 | V53: 1800 | W53: Open | X53: 301800Open | Y53: 0.917
U54: 40 | V54: 1800 | W54: Open | X54: 401800Open | Y54: 0.924
A55: Motors and Variable Speed Drives (VSDs) Specifications | U55: 50 | V55: 1800 | W55: Open | X55: 501800Open | Y55: 0.93
U56: 60 | V56: 1800 | W56: Open | X56: 601800Open | Y56: 0.936
U57: 75 | V57: 1800 | W57: Open | X57: 751800Open | Y57: 0.936
U58: 100 | V58: 1800 | W58: Open | X58: 1001800Open | Y58: 0.936
U59: 125 | V59: 1800 | W59: Open | X59: 1251800Open | Y59: 0.941
U60: 150 | V60: 1800 | W60: Open | X60: 1501800Open | Y60: 0.941
U61: 200 | V61: 1800 | W61: Open | X61: 2001800Open | Y61: 0.95
U62: 1 | V62: 1800 | W62: Closed | X62: 11800Closed | Y62: 0.825
U63: 1.5 | V63: 1800 | W63: Closed | X63: 1.51800Closed | Y63: 0.875
U64: 2 | V64: 1800 | W64: Closed | X64: 21800Closed | Y64: 0.885
U65: 3 | V65: 1800 | W65: Closed | X65: 31800Closed | Y65: 0.895
U66: 5 | V66: 1800 | W66: Closed | X66: 51800Closed | Y66: 0.895
U67: 7.5 | V67: 1800 | W67: Closed | X67: 7.51800Closed | Y67: 0.91
U68: 10 | V68: 1800 | W68: Closed | X68: 101800Closed | Y68: 0.91
U69: 15 | V69: 1800 | W69: Closed | X69: 151800Closed | Y69: 0.917
U70: 20 | V70: 1800 | W70: Closed | X70: 201800Closed | Y70: 0.917
U71: 25 | V71: 1800 | W71: Closed | X71: 251800Closed | Y71: 0.93
U72: 30 | V72: 1800 | W72: Closed | X72: 301800Closed | Y72: 0.93
U73: 40 | V73: 1800 | W73: Closed | X73: 401800Closed | Y73: 0.941
U74: 50 | V74: 1800 | W74: Closed | X74: 501800Closed | Y74: 0.941
U75: 60 | V75: 1800 | W75: Closed | X75: 601800Closed | Y75: 0.945
U76: 75 | V76: 1800 | W76: Closed | X76: 751800Closed | Y76: 0.945
U77: 100 | V77: 1800 | W77: Closed | X77: 1001800Closed | Y77: 0.95
U78: 125 | V78: 1800 | W78: Closed | X78: 1251800Closed | Y78: 0.95
U79: 150 | V79: 1800 | W79: Closed | X79: 1501800Closed | Y79: 0.958
U80: 200 | V80: 1800 | W80: Closed | X80: 2001800Closed | Y80: 0.958
U81: 1 | V81: 3600 | W81: Open | X81: 13600Open | Y81: 0.855
U82: 1.5 | V82: 3600 | W82: Open | X82: 1.53600Open | Y82: 0.865
U83: 2 | V83: 3600 | W83: Open | X83: 23600Open | Y83: 0.865
U84: 3 | V84: 3600 | W84: Open | X84: 33600Open | Y84: 0.895
U85: 5 | V85: 3600 | W85: Open | X85: 53600Open | Y85: 0.895
U86: 7.5 | V86: 3600 | W86: Open | X86: 7.53600Open | Y86: 0.917
U87: 10 | V87: 3600 | W87: Open | X87: 103600Open | Y87: 0.917
U88: 15 | V88: 3600 | W88: Open | X88: 153600Open | Y88: 0.924
U89: 20 | V89: 3600 | W89: Open | X89: 203600Open | Y89: 0.93
U90: 25 | V90: 3600 | W90: Open | X90: 253600Open | Y90: 0.936
U91: 30 | V91: 3600 | W91: Open | X91: 303600Open | Y91: 0.936
U92: 40 | V92: 3600 | W92: Open | X92: 403600Open | Y92: 0.941
U93: 50 | V93: 3600 | W93: Open | X93: 503600Open | Y93: 0.945
U94: 60 | V94: 3600 | W94: Open | X94: 603600Open | Y94: 0.95
U95: 75 | V95: 3600 | W95: Open | X95: 753600Open | Y95: 0.954
U96: 100 | V96: 3600 | W96: Open | X96: 1003600Open | Y96: 0.954
U97: 125 | V97: 3600 | W97: Open | X97: 1253600Open | Y97: 0.954
U98: 150 | V98: 3600 | W98: Open | X98: 1503600Open | Y98: 0.958
U99: 200 | V99: 3600 | W99: Open | X99: 2003600Open | Y99: 0.962
U100: 1 | V100: 3600 | W100: Closed | X100: 13600Closed | Y100: 0.77
U101: 1.5 | V101: 3600 | W101: Closed | X101: 1.53600Closed | Y101: 0.84
U102: 2 | V102: 3600 | W102: Closed | X102: 23600Closed | Y102: 0.855
U103: 3 | V103: 3600 | W103: Closed | X103: 33600Closed | Y103: 0.865
U104: 5 | V104: 3600 | W104: Closed | X104: 53600Closed | Y104: 0.885
U105: 7.5 | V105: 3600 | W105: Closed | X105: 7.53600Closed | Y105: 0.895
U106: 10 | V106: 3600 | W106: Closed | X106: 103600Closed | Y106: 0.902
U107: 15 | V107: 3600 | W107: Closed | X107: 153600Closed | Y107: 0.91
U108: 20 | V108: 3600 | W108: Closed | X108: 203600Closed | Y108: 0.91
U109: 25 | V109: 3600 | W109: Closed | X109: 253600Closed | Y109: 0.917
U110: 30 | V110: 3600 | W110: Closed | X110: 303600Closed | Y110: 0.917
U111: 40 | V111: 3600 | W111: Closed | X111: 403600Closed | Y111: 0.924
U112: 50 | V112: 3600 | W112: Closed | X112: 503600Closed | Y112: 0.93
U113: 60 | V113: 3600 | W113: Closed | X113: 603600Closed | Y113: 0.936
U114: 75 | V114: 3600 | W114: Closed | X114: 753600Closed | Y114: 0.936
U115: 100 | V115: 3600 | W115: Closed | X115: 1003600Closed | Y115: 0.941
U116: 125 | V116: 3600 | W116: Closed | X116: 1253600Closed | Y116: 0.95
U117: 150 | V117: 3600 | W117: Closed | X117: 1503600Closed | Y117: 0.95
U118: 200 | V118: 3600 | W118: Closed | X118: 2003600Closed | Y118: 0.954

Sheet Refrigeration & Window Film
B1: REFRIGERATION INCENTIVES
A2: Applicant: fill in gray fields
A3: Measures for Reach-In Coolers and Freezers
A4: Measures | D4: Incentive Unit | F4: Incentive/Unit | H4: # of Units | I4: Incentive
A6: Night Covers for Displays | D6: Linear Foot of Case | F6: 10 | I6: =F6*ROUND(H6,0) -> 0
A7: EC Motor for Reach-in Refrigerator Cases | D7: Motor | F7: 60 | I7: =F7*H7 -> 0
A8: EC Motor for Reach-in Freezer Cases | D8: Motor | F8: 70 | I8: =F8*H8 -> 0
A9: EC Motor for Walk-in Refrigerator Cases | D9: Motor | F9: 110 | I9: =F9*H9 -> 0
A10: EC Motor for Walk-in Freezer Cases | D10: Motor | F10: 120 | I10: 0
A11: Evaporator Fan Controller - Electrically Commutated Motor | D11: Motor | F11: 30 | I11: 0
A12: Anti-Sweat Heater Controls | D12: Linear Foot of Case | F12: 30 | I12: =F12*ROUND(H12,0) -> 0
A13: LED Refrigeration Case Lighting | D13: Door | F13: 40 | I13: 0
A14: ENERGY STAR® Solid Door Freezer | D14: Cubic Foot | F14: 20 | I14: 0
A15: ENERGY STAR® Glass Door Freezer | D15: Cubic Foot | F15: 40 | I15: 0
A16: Strip Curtains on Small Walk-in Coolers and Freezers* | D16: Square Foot | F16: 3 | I16: =F16*ROUND(H16,0) -> 0
A17: Strip Curtains on Large Walk-in Coolers and Freezers* | D17: Square Foot | F17: 5 | I17: =F17*ROUND(H17,0) -> 0
A18: Total Refrigeration Incentives | I18: =SUM(I6:I17) -> 0 | L18: =I18 -> 0
A19: * A small walk-in cooler and freezer has a doorway that is less than 50 square feet; a large walk-in cooler and freezer has a doorway that is greater than 50 square feet. | L19: =L18 -> 0
A20: Window Film Incentives (Must have 10% lower Shading Coeffient than pre-existing shading type; see spec for details. Pre-application notification is required)
A21: Region | B21: Orientation | C21: Cooling Solar Heat Gain [Btu/ft2-year] | D21: Area of Window Film [ft2] | E21: Incentive/ft2 | F21: Existing Shading Type | G21: Pre-Existing Shading Coefficient | H21: New Shading Coefficient | I21: Incentive | J21: $/kWh | L21: Cooling Solar Heat Gain [Btu/ft2-year] | R21: Peak Hour Solar Heat Gain [Btu/hr-ft2-year] | X21: Shading Type | Y21: Shading Coefficient | Z21: Source | AF21: Energy Savings [KWh] | AG21: Peak Hour Solar Heat Gain [Btu/hr-ft2-year] | AH21: Demand Savings [KW] | AJ21: Region
C22: =_xlfn.IFNA(INDEX($L$23:$O$30,MATCH(B22,$K$23:$K$30,0),MATCH(A22,$L$22:$O$22,0)),"") ->  | E22: 1.2 | G22: =_xlfn.IFNA(VLOOKUP($F22,$X$22:$Y$31,2,0),"") ->  | I22: =IFERROR(IF($H22<=($G22-(0.1*$G22)),IF(OR($D22=0,$AF22="",$AH22=""),"",$D22*$E22),0),"") ->  | J22: =IFERROR(I22/AF22,"") ->  | K22: Orientation | L22: Central -NM | M22: South -NM | N22: Roswell | O22: North -NM | Q22: Orientation | R22: Central -NM | S22: South -NM | T22: Roswell | U22: North -NM | X22: Single-Pane - None | Y22: 0.93 | Z22: Table 10: Based on 1/4" clear single-pane glass (ID 1b) | AF22: =IF(OR(A22="",B22="",D22="",H22=""),"",IFERROR((D22*C22*(G22-H22))/($N$33*1000),"")) ->  | AG22: =_xlfn.IFNA(INDEX($R$23:$U$30,MATCH(B22,$Q$23:$Q$30,0),MATCH(A22,$R$22:$U$22,0)),"") ->  | AH22: =IF(OR(D22="",H22=""),"",IFERROR((D22*AG22*(G22-H22))/($R$33*1000),"")) ->  | AJ22: North -NM
E23: 1.2 | K23: North | L23: 67108 | M23: 69897 | N23: 68618 | O23: 67995 | Q23: North | R23: 37 | S23: 39 | T23: 38 | U23: 37 | X23: Single-Pane- Roller Shade | Y23: 0.6 | Z23: Table 13G: Based on ID 1b, dark opaque | AJ23: Central -NM
E24: 1.2 | K24: North-East | L24: 102259 | M24: 103459 | N24: 98399 | O24: 103426 | Q24: North-East | R24: 55 | S24: 55 | T24: 53 | U24: 56 | X24: Single-Pane - Louvered Interior shades | Y24: 0.56 | Z24: Table 13A: Based on ID 1b, 0.50 reflection, excluded beam | AJ24: South -NM
E25: 1.2 | K25: East | L25: 145112 | M25: 141559 | N25: 137424 | O25: 145519 | Q25: East | R25: 71 | S25: 70 | T25: 67 | U25: 73 | X25: Single-Pane - Draperies -- Open Weave | Y25: 0.67 | Z25: Table 13G: Based on ID 1b, Medium Open Weave
E26: 1.2 | K26: South-East | L26: 148340 | M26: 141019 | N26: 140248 | O26: 147647 | Q26: South-East | R26: 64 | S26: 61 | T26: 60 | U26: 65 | X26: Single-Pane - Draperies -- Closed Weave | Y26: 0.56 | Z26: Table 13 GL Based on ID 1b, Medium Closed Weave
E27: 1.2 | K27: South | L27: 132595 | M27: 126016 | N27: 126800 | O27: 129217 | Q27: South | R27: 50 | S27: 46 | T27: 48 | U27: 49 | X27: Double-Pane - None | Y27: 0.8 | Z27: Table 10: Based on 1/4" clear double-pane glass (ID 1b)
E28: 1.2 | K28: South-West | L28: 140262 | M28: 139677 | N28: 139550 | O28: 134108 | Q28: South-West | R28: 58 | S28: 59 | T28: 60 | U28: 54 | X28: Double-Pane- Roller Shade | Y28: 0.62 | Z28: Table 13G: Based on ID 5b, dark opaque
E29: 1.2 | K29: West | L29: 133326 | M29: 139363 | N29: 137442 | O29: 127718 | Q29: West | R29: 63 | S29: 67 | T29: 67 | U29: 58 | X29: Double-Pane - Louvered Interior shades | Y29: 0.58 | Z29: Table 13B: Based on ID 5b, 0.50 reflection, excluded beam
E30: 1.2 | K30: North-West | L30: 93741 | M30: 100581 | N30: 99132 | O30: 91707 | Q30: North-West | R30: 49 | S30: 53 | T30: 53 | U30: 46 | X30: Double-Pane - Draperies -- Open Weave | Y30: 0.64 | Z30: Table 13G: Based on ID 5b, Medium Open Weave
E31: 1.2 | I31: =IFERROR(IF($H31<=($G31-(0.1*$G31)),IF(OR($D31=0,$AF31="",$AH31=""),"",$D31*$E31),0),"") ->  | J31: =IFERROR(I31/AF31,"") ->  | X31: Double-Pane - Draperies -- Closed Weave | Y31: 0.58 | Z31: Table 13G: Based on ID 5b, Medium Closed Weave | AF31: =IF(OR(A31="",B31="",D31="",H31=""),"",IFERROR((D31*C31*(G31-H31))/($N$33*1000),"")) ->  | AH31: =IF(OR(D31="",H31=""),"",IFERROR((D31*AG31*(G31-H31))/($R$33*1000),"")) -> 
E32: 1.2 | N32: Cooling Efficiency* [SEER] | R32: Cooling Efficiency* [EER]
E33: 1.2 | N33: 12.64 | R33: 10.17
A34: Total Window Film Incentives | I34: =SUM($I$22:$I$33) -> 0 | S34: Peak Hourly Solar Heat Gain Factors
A35: *Cooling efficiency is a weighted average of HVAC cooling part load system efficiency of commercial buldings.
A37: Refrigeration Specifications
A124: Building Envelope: Window Film Specifications

Sheet Food Service
C1: FOOD SERVICE EQUIPMENT INCENTIVES
A3: Update: Starting 2020 Food Service equipment ONLY qualifies under the Distributor Discount Program. For details on how to participate in the program please visit our website (link below).
D7: Distributor Discount Program
M16: FALSE
M28: FALSE
M35: =J35 -> 0

Sheet Custom
D1: CUSTOM INCENTIVES
A2: Applicant: fill in gray fields | D2: *Please attach supporting documentation as described in the specifications*
A3: Item 1
A4: Description | H4: $/kWh | I4: Subtotal
E5: Annual kWh Savings | H5: 0.08 | I5: =IF(AND(G5>0,G11>0,G13>0),MIN(G5*H5,G11,0.5*G13),0) -> 0
E7: kW Savings
E9: Annual Operating Hours | L9: =IF(ISNUMBER(I5)=TRUE,I5,0) -> 0
E11: Incremental Measure Cost
E13: Total Project Cost
A15: Item 2
A16: Description | H16: $/kWh | I16: Subtotal
E17: Annual kWh Savings | H17: 0.08 | I17: =IF(AND(G17>0,G23>0,G25>0),MIN(G17*H17,G23,0.5*G25),0) -> 0
E19: kW Savings
E21: Annual Operating Hours | L21: =IF(ISNUMBER(I17)=TRUE,I17,0) -> 0
E23: Incremental Measure Cost
E25: Total Project Cost
A27: Item 3
A28: Description | H28: $/kWh | I28: Subtotal
E29: Annual kWh Savings | H29: 0.08 | I29: =IF(AND(G29>0,G35>0,G37>0),MIN(G29*H29,G35,0.5*G37),0) -> 0
E31: kW Savings
E33: Annual Operating Hours | L33: =IF(ISNUMBER(I29)=TRUE,I29,0) -> 0
E35: Incremental Measure Cost
E37: Total Project Cost
A39: Item 4
A40: Description | H40: $/kWh | I40: Subtotal
E41: Annual kWh Savings | H41: 0.08 | I41: =IF(AND(G41>0,G47>0,G49>0),MIN(G41*H41,G47,0.5*G49),0) -> 0
E43: kW Savings
E45: Annual Operating Hours | L45: =IF(ISNUMBER(I41)=TRUE,I41,0) -> 0
E47: Incremental Measure Cost
E49: Total Project Cost
A51: Total Custom Incentives | I51: =L51 -> 0 | L51: =L9+L21+L33+L45 -> 0
A53: Incremental measure cost (IMC) is the difference between the cost of an energy-efficient piece of equipment and a new
A54: standard-efficiency piece of equipment. The IMC of energy-efficient equipment installed before an old piece of equipment
A55: reaches the end of its life (such as lighting equipment) generally is equal to the total cost of the energy-efficient equipment,
A56: including labor. The IMC of energy-efficient equipment installed at or near the end of life of an old piece of equipment (such as
A57: chillers, motors, air-conditioning units) generally is equal to the difference in cost between the energy-efficient equipment and
A58: the new standard-efficiency piece of equipment, not including labor.
A59: The rebate will be shown as 100% of the Incremental Measure Cost or 50% of the Total Project Cost. All Custom measures subject to approval using the Utility Cost Test (UCT). Submit calculations and costs for assistance.
A62: Custom Specifications

Sheet Horticulture Lighting
B1: HORTICULTURE LIGHTING INCENTIVES
A2: Applicant: fill in gray fields | D2: *Please attach supporting documentation as described in the specifications*
A3: Item 1
A4: Description | H4: $/kWh | I4: Subtotal
E5: Annual kWh Savings | H5: 0.06 | I5: =IF(AND(G5>0,G11>0,G13>0),MIN(G5*H5,G11,0.5*G13),0) -> 0
E7: kW Savings
E9: Annual Operating Hours | L9: =IF(ISNUMBER(I5)=TRUE,I5,0) -> 0
E11: Incremental Measure Cost
E13: Total Project Cost
A15: Item 2
A16: Description | H16: $/kWh | I16: Subtotal
E17: Annual kWh Savings | H17: 0.06 | I17: =IF(AND(G17>0,G23>0,G25>0),MIN(G17*H17,G23,0.5*G25),0) -> 0
E19: kW Savings
E21: Annual Operating Hours | L21: =IF(ISNUMBER(I17)=TRUE,I17,0) -> 0
E23: Incremental Measure Cost
E25: Total Project Cost
A27: Item 3
A28: Description | H28: $/kWh | I28: Subtotal
E29: Annual kWh Savings | H29: 0.06 | I29: =IF(AND(G29>0,G35>0,G37>0),MIN(G29*H29,G35,0.5*G37),0) -> 0
E31: kW Savings
E33: Annual Operating Hours | L33: =IF(ISNUMBER(I29)=TRUE,I29,0) -> 0
E35: Incremental Measure Cost
E37: Total Project Cost
A39: Item 4
A40: Description | H40: $/kWh | I40: Subtotal
E41: Annual kWh Savings | H41: 0.06 | I41: =IF(AND(G41>0,G47>0,G49>0),MIN(G41*H41,G47,0.5*G49),0) -> 0
E43: kW Savings
E45: Annual Operating Hours | L45: =IF(ISNUMBER(I41)=TRUE,I41,0) -> 0
E47: Incremental Measure Cost
E49: Total Project Cost
A51: Total Custom Incentives | I51: =L51 -> 0 | L51: =L9+L21+L33+L45 -> 0
A53: NOTES: Incremental measure cost (IMC) is the difference between the cost of an energy-efficient piece of equipment and a new
A54: standard-efficiency piece of equipment. The IMC of energy-efficient equipment installed before an old piece of equipment
A55: reaches the end of its life, such as lighting equipment generally is equal to the total cost of the energy-efficient equipment, including
A56: labor.
A57: The rebate will be shown as 100% of the Incremental Measure Cost or 50% of the Total Project Cost. All Custom measures subject to approval using the Utility Cost Test (UCT). Submit calculations and costs for assistance. See submission requirements in the
A59: Specs tab of this spreadsheet. A PRE-APPLICATION IS REQUIRED; THOSE APPLICATIONS SUBMITTED WITHOUT A PRE-
A60: APPLICATION WILL NOT BE ACCEPTED.
A62: Horticulture Lighting Specifications
